Workbook

Sheet Master
A1: ISIN | B1: Currency | C1: CC | D1: Type | I1: CC - Type
A2: IE00B00G9Z55 | B2: GBP | C2: 1770115 | D2: 1 | E2: ISIN | F2: Currency | G2: CC | H2: Type | I2: =$C2&" - "&$D2 -> 1770115 - 1 | J2: =IF($K2="Missing from feeder","Missing from feeder","") ->  | K2: =IFERROR(HLOOKUP($I2,[1]Combined!$B$2:$WH$126,4,),"Missing from feeder") -> 39.88074597
A3: IE00B2R0SK20 | B3: EUR | C3: 1770115 | D3: 3 | E3: ISIN | F3: Currency | G3: CC | H3: Type | I3: 1770115 - 3 | K3: =IFERROR(HLOOKUP($I3,[1]Combined!$B$2:$WH$126,4,),"Missing from feeder") -> 25.00472535
A4: IE0034270375 | B4: GBP | C4: 1770116 | D4: 1 | E4: ISIN | F4: Currency | G4: CC | H4: Type | I4: 1770116 - 1 | K4: =IFERROR(HLOOKUP($I4,[1]Combined!$B$2:$WH$126,4,),"Missing from feeder") -> 21.33736475
A5: IE00B2R0SM44 | B5: GBP | C5: 1770116 | D5: 2 | E5: ISIN | F5: Currency | G5: CC | H5: Type | I5: 1770116 - 2 | K5: =IFERROR(HLOOKUP($I5,[1]Combined!$B$2:$WH$126,4,),"Missing from feeder") -> 9.22989835
A6: IE0030893295 | B6: EUR | C6: 1770117 | D6: 1 | E6: ISIN | F6: Currency | G6: CC | H6: Type | I6: 1770117 - 1 | K6: =IFERROR(HLOOKUP($I6,[1]Combined!$B$2:$WH$126,4,),"Missing from feeder") -> 22.06045297
A7: IE00B1DPRZ29 | B7: EUR | C7: 1770117 | D7: 2 | E7: ISIN | F7: Currency | G7: CC | H7: Type | I7: 1770117 - 2 | K7: =IFERROR(HLOOKUP($I7,[1]Combined!$B$2:$WH$126,4,),"Missing from feeder") -> -23.05602775
A8: IE00B2R0SC46 | C8: 1770117 | D8: 3 | E8: ISIN | F8: Currency | G8: CC | H8: Type | I8: 1770117 - 3 | K8: =IFERROR(HLOOKUP($I8,[1]Combined!$B$2:$WH$126,4,),"Missing from feeder") -> 114.5676196
A9: IE00B2R0SD52 | B9: EUR | C9: 1770117 | D9: 4 | E9: ISIN | F9: Currency | G9: CC | H9: Type | I9: 1770117 - 4 | K9: =IFERROR(HLOOKUP($I9,[1]Combined!$B$2:$WH$126,4,),"Missing from feeder") -> 14.25836053
A10: IE00B4Q6B737 | B10: USD | C10: 1770118 | D10: 1 | E10: ISIN | F10: Currency | G10: CC | H10: Type | I10: 1770118 - 1 | K10: =IFERROR(HLOOKUP($I10,[1]Combined!$B$2:$WH$126,4,),"Missing from feeder") -> 25.81442766
A11: IE00B61C7X84 | B11: GBP | C11: 1770118 | D11: 10 | E11: ISIN | F11: Currency | G11: CC | H11: Type | I11: 1770118 - 10 | K11: =IFERROR(HLOOKUP($I11,[1]Combined!$B$2:$WH$126,4,),"Missing from feeder") -> 14.48259764
A12: IE00B4LFH886 | B12: USD | C12: 1788120 | D12: 1 | E12: ISIN | F12: Currency | G12: CC | H12: Type | I12: 1788120 - 1 | K12: =IFERROR(HLOOKUP($I12,[1]Combined!$B$2:$WH$126,4,),"Missing from feeder") -> -2.07070427

Sheet IE00B00G9Z55
A1: ISIN | B1: Currency | C1: CC | D1: Type
A2: IE00B00G9Z55 | B2: GBP | C2: 1770115 | D2: 1 | E2: 1770115 - 1 | F2: TT EUROPE EX-UK EQUITY FU
E4: Old | F4: New
A5: Date | B5: ISIN | C5: WKN | D5: Currency | E5: Share profits in % (Aktiengewinn) | F5: Share profits in % (Aktiengewinn) Corporation Tax Act * | G5: Redemption Price | H5: Interim Profit | I5: ADDI
A6: 2013-03-01 | B6: IE00B00G9Z55 | C6: n/a | D6: GBP | E6: 39.88074597 | F6: 39.8843 | G6: 22.384 | H6: 0 | I6: 0.0260619
A7: 2013-03-04 | B7: IE00B00G9Z55 | C7: n/a | D7: GBP | E7: 39.72243568 | F7: 39.752 | G7: 22.322 | H7: 0 | I7: 0.0260619
A8: 2013-03-05 | B8: IE00B00G9Z55 | C8: n/a | D8: GBP | E8: 40.75089842 | F8: 40.7834 | G8: 22.704 | H8: 0 | I8: 0.0260619
A9: 2013-03-06 | B9: IE00B00G9Z55 | C9: n/a | D9: GBP | E9: 40.89202096 | F9: 40.9272 | G9: 22.758 | H9: 0 | I9: 0.0260619
A10: 2013-03-07 | B10: IE00B00G9Z55 | C10: n/a | D10: GBP | E10: 41.47287668 | F10: 41.4454 | G10: 22.986 | H10: 0 | I10: 0.0260619
A11: 2013-03-08 | B11: IE00B00G9Z55 | C11: n/a | D11: GBP | E11: 41.89307681 | F11: 41.8691 | G11: 23.151 | H11: 0 | I11: 0.0260619
A12: 2013-03-11 | B12: IE00B00G9Z55 | C12: n/a | D12: GBP | E12: 42.17909215 | F12: 42.1687 | G12: 23.268 | H12: 0 | I12: 0.0260619
A13: 2013-03-12 | B13: IE00B00G9Z55 | C13: n/a | D13: GBP | E13: 42.28260322 | F13: 42.2752 | G13: 23.312 | H13: 0 | I13: 0.0260619
A14: 2013-03-13 | B14: IE00B00G9Z55 | C14: n/a | D14: GBP | E14: 41.68540719 | F14: 41.6803 | G14: 23.071 | H14: 0 | I14: 0.0260619
A15: 2013-03-14 | B15: IE00B00G9Z55 | C15: n/a | D15: GBP | E15: 41.73671006 | F15: 41.7299 | G15: 23.094 | H15: 0 | I15: 0.0260619
A16: 2013-03-15 | B16: IE00B00G9Z55 | C16: n/a | D16: GBP | E16: 41.56984838 | F16: 41.5664 | G16: 23.034 | H16: 0 | I16: 0.0260619
A17: 2013-03-19 | B17: IE00B00G9Z55 | C17: n/a | D17: GBP | E17: 39.96428532 | F17: 39.9506 | G17: 22.421 | H17: 0 | I17: 0.0260619
A18: 2013-03-20 | B18: IE00B00G9Z55 | C18: n/a | D18: GBP | E18: 40.55656389 | F18: 40.5462 | G18: 22.646 | H18: 0 | I18: 0.0260619
A19: 2013-03-21 | B19: IE00B00G9Z55 | C19: n/a | D19: GBP | E19: 39.59279265 | F19: 39.5467 | G19: 22.282 | H19: 0 | I19: 0.0260619
A20: 2013-03-22 | B20: IE00B00G9Z55 | C20: n/a | D20: GBP | E20: 39.6081477 | F20: 39.5515 | G20: 22.284 | H20: 0 | I20: 0.0260619
A21: 2013-03-25 | B21: IE00B00G9Z55 | C21: n/a | D21: GBP | E21: 39.1452549 | F21: 39.0985 | G21: 22.114 | H21: 0 | I21: 0.0260619
A22: 2013-03-26 | B22: IE00B00G9Z55 | C22: n/a | D22: GBP | E22: 39.35436981 | F22: 39.3111 | G22: 22.194 | H22: 0 | I22: 0.0260619
A23: 2013-03-27 | B23: IE00B00G9Z55 | C23: n/a | D23: GBP | E23: 38.83660507 | F23: 38.796 | G23: 22.006 | H23: 0 | I23: 0.0260619
A24: 2013-03-28 | B24: IE00B00G9Z55 | C24: n/a | D24: GBP | E24: 39.11733818 | F24: 39.0815 | G24: 22.104 | H24: 0 | I24: 0.0260619
A25: 2013-04-02 | B25: IE00B00G9Z55 | C25: n/a | D25: GBP | E25: 40.20149851 | F25: 40.1827 | G25: 22.499 | H25: 0 | I25: 0.0260619
A26: 2013-04-03 | B26: IE00B00G9Z55 | C26: n/a | D26: GBP | E26: 39.82363583 | F26: 39.8081 | G26: 22.355 | H26: 0 | I26: 0.0260619
A27: 2013-04-04 | B27: IE00B00G9Z55 | C27: n/a | D27: GBP | E27: 38.94341363 | F27: 38.9311 | G27: 22.032 | H27: 0 | I27: 0.0260619
A28: 2013-04-05 | B28: IE00B00G9Z55 | C28: n/a | D28: GBP | E28: 38.02196924 | F28: 37.9752 | G28: 21.692 | H28: 0 | I28: 0.0260619
A29: 2013-04-08 | B29: IE00B00G9Z55 | C29: n/a | D29: GBP | E29: 38.59726746 | F29: 38.5606 | G29: 21.89 | H29: 0 | I29: 0.0260619
A30: 2013-04-09 | B30: IE00B00G9Z55 | C30: n/a | D30: GBP | E30: 38.706 | F30: 38.6728 | G30: 21.94 | H30: 0 | I30: 0.0260619
A31: 2013-04-10 | B31: IE00B00G9Z55 | C31: n/a | D31: GBP | E31: 39.92440065 | F31: 39.8414 | G31: 22.367 | H31: 0 | I31: 0.0260619
A32: 2013-04-11 | B32: IE00B00G9Z55 | C32: n/a | D32: GBP | E32: 40.24056449 | F32: 40.1384 | G32: 22.484 | H32: 0 | I32: 0.0260619
A33: 2013-04-12 | B33: IE00B00G9Z55 | C33: n/a | D33: GBP | E33: 39.5279617 | F33: 39.4283 | G33: 22.223 | H33: 0 | I33: 0.0260619
A34: 2013-04-15 | B34: IE00B00G9Z55 | C34: n/a | D34: GBP | E34: 39.43992668 | F34: 39.2434 | G34: 22.186 | H34: 0 | I34: 0.0260619
A35: 2013-04-16 | B35: IE00B00G9Z55 | C35: n/a | D35: GBP | E35: 39.48394358 | F35: 39.2775 | G35: 22.193 | H35: 0 | I35: 0.0260619
A36: 2013-04-17 | B36: IE00B00G9Z55 | C36: n/a | D36: GBP | E36: 38.02267529 | F36: 37.8157 | G36: 21.677 | H36: 0 | I36: 0.0260619
A37: 2013-04-18 | B37: IE00B00G9Z55 | C37: n/a | D37: GBP | E37: 37.82593155 | F37: 37.6222 | G37: 21.607 | H37: 0 | I37: 0.0260619
A38: 2013-04-19 | B38: IE00B00G9Z55 | C38: n/a | D38: GBP | E38: 38.39063021 | F38: 38.1569 | G38: 21.802 | H38: 0 | I38: 0.0260619
A39: 2013-04-22 | B39: IE00B00G9Z55 | C39: n/a | D39: GBP | E39: 38.27464446 | F39: 38.0445 | G39: 21.772 | H39: 0 | I39: 0.0260619
A40: 2013-04-23 | B40: IE00B00G9Z55 | C40: n/a | D40: GBP | E40: 39.47567489 | F40: 39.2535 | G40: 22.21 | H40: 0 | I40: 0.0260619
A41: 2013-04-24 | B41: IE00B00G9Z55 | C41: n/a | D41: GBP | E41: 39.94741509 | F41: 39.7304 | G41: 22.388 | H41: 0 | I41: 0.0260619
A42: 2013-04-25 | B42: IE00B00G9Z55 | C42: n/a | D42: GBP | E42: 39.500426 | F42: 39.2093 | G42: 22.235 | H42: 0 | I42: 0.0260619
A43: 2013-04-26 | B43: IE00B00G9Z55 | C43: n/a | D43: GBP | E43: 39.04898078 | F43: 38.575 | G43: 22.073 | H43: 0 | I43: 0.0260619
A44: 2013-04-29 | B44: IE00B00G9Z55 | C44: n/a | D44: GBP | E44: 40.0295365 | F44: 39.4541 | G44: 22.414 | H44: 0 | I44: 0.0260619
A45: 2013-04-30 | B45: IE00B00G9Z55 | C45: n/a | D45: GBP | E45: 40.20171081 | F45: 39.6273 | G45: 22.477 | H45: 0 | I45: 0.0260619
A46: 2013-05-01 | B46: IE00B00G9Z55 | C46: n/a | D46: GBP | E46: 40.28636597 | F46: 39.7156 | G46: 22.508 | H46: 0 | I46: 0.0260619
A47: 2013-05-02 | B47: IE00B00G9Z55 | C47: n/a | D47: GBP | E47: 40.28168255 | F47: 39.6268 | G47: 22.531 | H47: 0 | I47: 0.0260619
A48: 2013-05-03 | B48: IE00B00G9Z55 | C48: n/a | D48: GBP | E48: 40.86973108 | F48: 40.2249 | G48: 22.754 | H48: 0 | I48: 0.0260619
A49: 2013-05-07 | B49: IE00B00G9Z55 | C49: n/a | D49: GBP | E49: 41.42803496 | F49: 40.7681 | G49: 22.972 | H49: 0 | I49: 0.0260619
A50: 2013-05-08 | B50: IE00B00G9Z55 | C50: n/a | D50: GBP | E50: 42.07294635 | F50: 41.3631 | G50: 23.204 | H50: 0 | I50: 0.0260619
A51: 2013-05-09 | B51: IE00B00G9Z55 | C51: n/a | D51: GBP | E51: 41.96400192 | F51: 41.1564 | G51: 23.166 | H51: 0 | I51: 0.0260619
A52: 2013-05-10 | B52: IE00B00G9Z55 | C52: n/a | D52: GBP | E52: 42.17350563 | F52: 41.3627 | G52: 23.253 | H52: 0 | I52: 0.0260619
A53: 2013-05-13 | B53: IE00B00G9Z55 | C53: n/a | D53: GBP | E53: 42.12353933 | F53: 41.3273 | G53: 23.229 | H53: 0 | I53: 0.0260619
A54: 2013-05-14 | B54: IE00B00G9Z55 | C54: n/a | D54: GBP | E54: 42.86186408 | F54: 42.0245 | G54: 23.503 | H54: 0 | I54: 0.0260619
A55: 2013-05-15 | B55: IE00B00G9Z55 | C55: n/a | D55: GBP | E55: 42.88390356 | F55: 42.0515 | G55: 23.533 | H55: 0 | I55: 0.0260619
A56: 2013-05-16 | B56: IE00B00G9Z55 | C56: n/a | D56: GBP | E56: 42.76848616 | F56: 41.8187 | G56: 23.485 | H56: 0 | I56: 0.0260619
A57: 2013-05-17 | B57: IE00B00G9Z55 | C57: n/a | D57: GBP | E57: 42.99449792 | F57: 41.9674 | G57: 23.581 | H57: 0 | I57: 0.0260619
A58: 2013-05-20 | B58: IE00B00G9Z55 | C58: n/a | D58: GBP | E58: 43.43794805 | F58: 42.32874063 | G58: 23.764 | H58: 0 | I58: 0.0260619
A59: 2013-05-21 | B59: IE00B00G9Z55 | C59: n/a | D59: GBP | E59: 43.87723297 | F59: 42.77694097 | G59: 23.929 | H59: 0 | I59: 0.0260619
A60: 2013-05-22 | B60: IE00B00G9Z55 | C60: n/a | D60: GBP | E60: 44.54951452 | F60: 43.46285267 | G60: 24.201 | H60: 0 | I60: 0.0260619
A61: 2013-05-23 | B61: IE00B00G9Z55 | C61: n/a | D61: GBP | E61: 43.25223554 | F61: 42.14433241 | G61: 23.655 | H61: 0 | I61: 0.0260619
A62: 2013-05-24 | B62: IE00B00G9Z55 | C62: n/a | D62: GBP | E62: 43.09279374 | F62: 41.97476287 | G62: 23.591 | H62: 0 | I62: 0.0260619
A63: 2013-05-28 | B63: IE00B00G9Z55 | C63: n/a | D63: GBP | E63: 44.05416351 | F63: 42.96087034 | G63: 23.966 | H63: 0 | I63: 0.0260619
A64: 2013-05-29 | B64: IE00B00G9Z55 | C64: n/a | D64: GBP | E64: 43.27367907 | F64: 42.17008789 | G64: 23.662 | H64: 0 | I64: 0.0260619
A65: 2013-05-30 | B65: IE00B00G9Z55 | C65: n/a | D65: GBP | E65: 43.49189647 | F65: 42.38323859 | G65: 23.744 | H65: 0 | I65: 0.0260619
A66: 2013-05-31 | B66: IE00B00G9Z55 | C66: n/a | D66: GBP | E66: 42.69998886 | F66: 42.386457 | G66: 23.437 | H66: 0 | I66: 0.0260619
A67: 2013-06-04 | B67: IE00B00G9Z55 | C67: n/a | D67: GBP | E67: 42.52102494 | F67: 41.3566196 | G67: 23.363 | H67: 0 | I67: 0.0260619
A68: 2013-06-05 | B68: IE00B00G9Z55 | C68: n/a | D68: GBP | E68: 41.33116634 | F68: 40.12121182 | G68: 22.909 | H68: 0 | I68: 0.0260619
A69: 2013-06-06 | B69: IE00B00G9Z55 | C69: n/a | D69: GBP | E69: 40.61336071 | F69: 39.39230587 | G69: 22.628 | H69: 0 | I69: 0.0260619
A70: 2013-06-07 | B70: IE00B00G9Z55 | C70: n/a | D70: GBP | E70: 41.53094751 | F70: 40.33153338 | G70: 22.975 | H70: 0 | I70: 0.0260619
A71: 2013-06-10 | B71: IE00B00G9Z55 | C71: n/a | D71: GBP | E71: 41.46368771 | F71: 40.27293066 | G71: 22.952 | H71: 0 | I71: 0.0260619
A72: 2013-06-11 | B72: IE00B00G9Z55 | C72: n/a | D72: GBP | E72: 40.74177679 | F72: 39.54041107 | G72: 22.677 | H72: 0 | I72: 0.0260619
A73: 2013-06-12 | B73: IE00B00G9Z55 | C73: n/a | D73: GBP | E73: 40.56147572 | F73: 39.35986268 | G73: 22.605 | H73: 0 | I73: 0.0260619
A74: 2013-06-13 | B74: IE00B00G9Z55 | C74: n/a | D74: GBP | E74: 40.27894542 | F74: 39.07428249 | G74: 22.502 | H74: 0 | I74: 0.0260619
A75: 2013-06-14 | B75: IE00B00G9Z55 | C75: n/a | D75: GBP | E75: 40.85975301 | F75: 39.66922222 | G75: 22.714 | H75: 0 | I75: 0.0260619
A76: 2013-06-17 | B76: IE00B00G9Z55 | C76: n/a | D76: GBP | E76: 41.16148898 | F76: 39.98692369 | G76: 22.828 | H76: 0 | I76: 0.0260619
A77: 2013-06-18 | B77: IE00B00G9Z55 | C77: n/a | D77: GBP | E77: 41.87572522 | F77: 40.7171603 | G77: 23.1 | H77: 0 | I77: 0.0260619
A78: 2013-06-19 | B78: IE00B00G9Z55 | C78: n/a | D78: GBP | E78: 41.55816967 | F78: 40.39698315 | G78: 22.98 | H78: 0 | I78: 0.0260619
A79: 2013-06-20 | B79: IE00B00G9Z55 | C79: n/a | D79: GBP | E79: 39.31999974 | F79: 38.1197094 | G79: 22.182 | H79: 0 | I79: 0.0260619
A80: 2013-06-21 | B80: IE00B00G9Z55 | C80: n/a | D80: GBP | E80: 38.69175888 | F80: 37.48136546 | G80: 21.957 | H80: 0 | I80: 0.0260619
A81: 2013-06-24 | B81: IE00B00G9Z55 | C81: n/a | D81: GBP | E81: 37.1778532 | F81: 35.9240486 | G81: 21.45 | H81: 0 | I81: 0.0260619
A82: 2013-06-25 | B82: IE00B00G9Z55 | C82: n/a | D82: GBP | E82: 38.01379838 | F82: 36.77849661 | G82: 21.738 | H82: 0 | I82: 0.0260619
A83: 2013-06-26 | B83: IE00B00G9Z55 | C83: n/a | D83: GBP | E83: 39.22947071 | F83: 38.02154864 | G83: 22.177 | H83: 0 | I83: 0.0260619
A84: 2013-06-27 | B84: IE00B00G9Z55 | C84: n/a | D84: GBP | E84: 40.31628675 | F84: 39.13116436 | G84: 22.559 | H84: 0 | I84: 0.0260619
A85: 2013-06-28 | B85: IE00B00G9Z55 | C85: n/a | D85: GBP | E85: 40.13637445 | F85: 38.951 | G85: 22.497 | H85: 0 | I85: 0.0260619

Sheet IE00B2R0SK20
A1: ISIN | B1: Currency | C1: CC | D1: Type
A2: IE00B2R0SK20 | B2: EUR | C2: 1770115 | D2: 3 | E2: 1770115 - 3 | F2: TT EUROPE EX-UK EQUITY FU
E4: Old | F4: New
A5: Date | B5: ISIN | C5: WKN | D5: Currency | E5: Share profits in % (Aktiengewinn) | F5: Share profits in % (Aktiengewinn) Corporation Tax Act * | G5: Redemption Price | H5: Interim Profit | I5: ADDI
A6: 2013-03-01 | B6: IE00B2R0SK20 | C6: n/a | D6: EUR | E6: 25.00472535 | F6: 25.0083 | G6: 12.424 | H6: 0 | I6: 0
A7: 2013-03-04 | B7: IE00B2R0SK20 | C7: n/a | D7: EUR | E7: 24.80542448 | F7: 24.835 | G7: 12.415 | H7: 0 | I7: 0
A8: 2013-03-05 | B8: IE00B2R0SK20 | C8: n/a | D8: EUR | E8: 26.08475512 | F8: 26.1171 | G8: 12.652 | H8: 0 | I8: 0
A9: 2013-03-06 | B9: IE00B2R0SK20 | C9: n/a | D9: EUR | E9: 26.26039522 | F9: 26.2955 | G9: 12.653 | H9: 0 | I9: 0
A10: 2013-03-07 | B10: IE00B2R0SK20 | C10: n/a | D10: EUR | E10: 26.98632881 | F10: 26.9587 | G10: 12.694 | H10: 0 | I10: 0
A11: 2013-03-08 | B11: IE00B2R0SK20 | C11: n/a | D11: EUR | E11: 27.51022984 | F11: 27.4862 | G11: 12.782 | H11: 0 | I11: 0
A12: 2013-03-11 | B12: IE00B2R0SK20 | C12: n/a | D12: EUR | E12: 27.86820237 | F12: 27.8577 | G12: 12.79 | H12: 0 | I12: 0
A13: 2013-03-12 | B13: IE00B2R0SK20 | C13: n/a | D13: EUR | E13: 27.99894791 | F13: 27.9915 | G13: 12.795 | H13: 0 | I13: 0
A14: 2013-03-13 | B14: IE00B2R0SK20 | C14: n/a | D14: EUR | E14: 27.25230464 | F14: 27.2471 | G14: 12.766 | H14: 0 | I14: 0
A15: 2013-03-14 | B15: IE00B2R0SK20 | C15: n/a | D15: EUR | E15: 27.31810794 | F15: 27.3112 | G15: 12.857 | H15: 0 | I15: 0
A16: 2013-03-15 | B16: IE00B2R0SK20 | C16: n/a | D16: EUR | E16: 27.1134755 | F16: 27.1099 | G16: 12.806 | H16: 0 | I16: 0
A17: 2013-03-19 | B17: IE00B2R0SK20 | C17: n/a | D17: EUR | E17: 25.11314074 | F17: 25.0993 | G17: 12.627 | H17: 0 | I17: 0
A18: 2013-03-20 | B18: IE00B2R0SK20 | C18: n/a | D18: EUR | E18: 25.85251058 | F18: 25.842 | G18: 12.705 | H18: 0 | I18: 0
A19: 2013-03-21 | B19: IE00B2R0SK20 | C19: n/a | D19: EUR | E19: 24.64879718 | F19: 24.6026 | G19: 12.563 | H19: 0 | I19: 0
A20: 2013-03-22 | B20: IE00B2R0SK20 | C20: n/a | D20: EUR | E20: 24.66536932 | F20: 24.6087 | G20: 12.544 | H20: 0 | I20: 0
A21: 2013-03-25 | B21: IE00B2R0SK20 | C21: n/a | D21: EUR | E21: 24.08768244 | F21: 24.0409 | G21: 12.513 | H21: 0 | I21: 0
A22: 2013-03-26 | B22: IE00B2R0SK20 | C22: n/a | D22: EUR | E22: 24.35102706 | F22: 24.3078 | G22: 12.558 | H22: 0 | I22: 0
A23: 2013-03-27 | B23: IE00B2R0SK20 | C23: n/a | D23: EUR | E23: 23.70480032 | F23: 23.6642 | G23: 12.493 | H23: 0 | I23: 0
A24: 2013-03-28 | B24: IE00B2R0SK20 | C24: n/a | D24: EUR | E24: 24.0526285 | F24: 24.0168 | G24: 12.549 | H24: 0 | I24: 0
A25: 2013-04-02 | B25: IE00B2R0SK20 | C25: n/a | D25: EUR | E25: 25.40181826 | F25: 25.3831 | G25: 12.729 | H25: 0 | I25: 0
A26: 2013-04-03 | B26: IE00B2R0SK20 | C26: n/a | D26: EUR | E26: 24.92851625 | F26: 24.9131 | G26: 12.644 | H26: 0 | I26: 0
A27: 2013-04-04 | B27: IE00B2R0SK20 | C27: n/a | D27: EUR | E27: 23.82961714 | F27: 23.8173 | G27: 12.492 | H27: 0 | I27: 0
A28: 2013-04-05 | B28: IE00B2R0SK20 | C28: n/a | D28: EUR | E28: 22.67166982 | F28: 22.625 | G28: 12.278 | H28: 0 | I28: 0
A29: 2013-04-08 | B29: IE00B2R0SK20 | C29: n/a | D29: EUR | E29: 23.38563122 | F29: 23.349 | G29: 12.338 | H29: 0 | I29: 0
A30: 2013-04-09 | B30: IE00B2R0SK20 | C30: n/a | D30: EUR | E30: 23.5645672 | F30: 23.5287 | G30: 12.339 | H30: 0 | I30: 0
A31: 2013-04-10 | B31: IE00B2R0SK20 | C31: n/a | D31: EUR | E31: 25.03681781 | F31: 24.9539 | G31: 12.577 | H31: 0 | I31: 0
A32: 2013-04-11 | B32: IE00B2R0SK20 | C32: n/a | D32: EUR | E32: 25.43099531 | F32: 25.3289 | G32: 12.66 | H32: 0 | I32: 0
A33: 2013-04-12 | B33: IE00B2R0SK20 | C33: n/a | D33: EUR | E33: 24.54392826 | F33: 24.4443 | G33: 12.519 | H33: 0 | I33: 0
A34: 2013-04-15 | B34: IE00B2R0SK20 | C34: n/a | D34: EUR | E34: 24.4314244 | F34: 24.235 | G34: 12.465 | H34: 0 | I34: 0
A35: 2013-04-16 | B35: IE00B2R0SK20 | C35: n/a | D35: EUR | E35: 24.48017809 | F35: 24.2738 | G35: 12.409 | H35: 0 | I35: 0
A36: 2013-04-17 | B36: IE00B2R0SK20 | C36: n/a | D36: EUR | E36: 22.66175727 | F36: 22.4549 | G36: 12.157 | H36: 0 | I36: 0
A37: 2013-04-18 | B37: IE00B2R0SK20 | C37: n/a | D37: EUR | E37: 22.4148637 | F37: 22.2111 | G37: 12.126 | H37: 0 | I37: 0
A38: 2013-04-19 | B38: IE00B2R0SK20 | C38: n/a | D38: EUR | E38: 23.11721043 | F38: 22.8835 | G38: 12.208 | H38: 0 | I38: 0
A39: 2013-04-22 | B39: IE00B2R0SK20 | C39: n/a | D39: EUR | E39: 22.98043921 | F39: 22.7503 | G39: 12.228 | H39: 0 | I39: 0
A40: 2013-04-23 | B40: IE00B2R0SK20 | C40: n/a | D40: EUR | E40: 24.48322072 | F40: 24.2611 | G40: 12.523 | H40: 0 | I40: 0
A41: 2013-04-24 | B41: IE00B2R0SK20 | C41: n/a | D41: EUR | E41: 25.07430051 | F41: 24.8573 | G41: 12.627 | H41: 0 | I41: 0
A42: 2013-04-25 | B42: IE00B2R0SK20 | C42: n/a | D42: EUR | E42: 24.52473633 | F42: 24.2336 | G42: 12.673 | H42: 0 | I42: 0
A43: 2013-04-26 | B43: IE00B2R0SK20 | C43: n/a | D43: EUR | E43: 23.96325033 | F43: 23.4893 | G43: 12.602 | H43: 0 | I43: 0
A44: 2013-04-29 | B44: IE00B2R0SK20 | C44: n/a | D44: EUR | E44: 25.17354992 | F44: 24.5983 | G44: 12.727 | H44: 0 | I44: 0
A45: 2013-04-30 | B45: IE00B2R0SK20 | C45: n/a | D45: EUR | E45: 25.38735057 | F45: 24.8133 | G45: 12.74 | H45: 0 | I45: 0
A46: 2013-05-01 | B46: IE00B2R0SK20 | C46: n/a | D46: EUR | E46: 25.4918316 | F46: 24.9214 | G46: 12.738 | H46: 0 | I46: 0
A47: 2013-05-02 | B47: IE00B2R0SK20 | C47: n/a | D47: EUR | E47: 25.50221323 | F47: 24.8476 | G47: 12.835 | H47: 0 | I47: 0
A48: 2013-05-03 | B48: IE00B2R0SK20 | C48: n/a | D48: EUR | E48: 26.23526342 | F48: 25.5908 | G48: 12.967 | H48: 0 | I48: 0
A49: 2013-05-07 | B49: IE00B2R0SK20 | C49: n/a | D49: EUR | E49: 26.9325515 | F49: 26.273 | G49: 13.039 | H49: 0 | I49: 0
A50: 2013-05-08 | B50: IE00B2R0SK20 | C50: n/a | D50: EUR | E50: 27.72233224 | F50: 27.0129 | G50: 13.163 | H50: 0 | I50: 0
A51: 2013-05-09 | B51: IE00B2R0SK20 | C51: n/a | D51: EUR | E51: 27.58975851 | F51: 26.7826 | G51: 13.162 | H51: 0 | I51: 0
A52: 2013-05-10 | B52: IE00B2R0SK20 | C52: n/a | D52: EUR | E52: 27.8534257 | F52: 27.043 | G52: 13.215 | H52: 0 | I52: 0
A53: 2013-05-13 | B53: IE00B2R0SK20 | C53: n/a | D53: EUR | E53: 27.78867727 | F53: 26.9928 | G53: 13.181 | H53: 0 | I53: 0
A54: 2013-05-14 | B54: IE00B2R0SK20 | C54: n/a | D54: EUR | E54: 28.6941097 | F54: 27.8571 | G54: 13.265 | H54: 0 | I54: 0
A55: 2013-05-15 | B55: IE00B2R0SK20 | C55: n/a | D55: EUR | E55: 28.73420487 | F55: 27.9021 | G55: 13.375 | H55: 0 | I55: 0
A56: 2013-05-16 | B56: IE00B2R0SK20 | C56: n/a | D56: EUR | E56: 28.58942038 | F56: 27.64 | G56: 13.362 | H56: 0 | I56: 0
A57: 2013-05-17 | B57: IE00B2R0SK20 | C57: n/a | D57: EUR | E57: 28.87332647 | F57: 27.8467 | G57: 13.412 | H57: 0 | I57: 0
A58: 2013-05-20 | B58: IE00B2R0SK20 | C58: n/a | D58: EUR | E58: 29.42529676 | F58: 28.3165089 | G58: 13.507 | H58: 0 | I58: 0
A59: 2013-05-21 | B59: IE00B2R0SK20 | C59: n/a | D59: EUR | E59: 29.96164469 | F59: 28.86176957 | G59: 13.514 | H59: 0 | I59: 0
A60: 2013-05-22 | B60: IE00B2R0SK20 | C60: n/a | D60: EUR | E60: 30.78991968 | F60: 29.70369909 | G60: 13.574 | H60: 0 | I60: 0
A61: 2013-05-23 | B61: IE00B2R0SK20 | C61: n/a | D61: EUR | E61: 29.17529182 | F61: 28.06784116 | G61: 13.26 | H61: 0 | I61: 0
A62: 2013-05-24 | B62: IE00B2R0SK20 | C62: n/a | D62: EUR | E62: 28.97767312 | F62: 27.86009655 | G62: 13.261 | H62: 0 | I62: 0
A63: 2013-05-28 | B63: IE00B2R0SK20 | C63: n/a | D63: EUR | E63: 30.1598356 | F63: 29.06698904 | G63: 13.457 | H63: 0 | I63: 0
A64: 2013-05-29 | B64: IE00B2R0SK20 | C64: n/a | D64: EUR | E64: 29.20066344 | F64: 28.09752352 | G64: 13.243 | H64: 0 | I64: 0
A65: 2013-05-30 | B65: IE00B2R0SK20 | C65: n/a | D65: EUR | E65: 29.46756787 | F65: 28.35936126 | G65: 13.287 | H65: 0 | I65: 0
A66: 2013-05-31 | B66: IE00B2R0SK20 | C66: n/a | D66: EUR | E66: 28.49225866 | F66: 28.35681457 | G66: 13.163 | H66: 0 | I66: 0
A67: 2013-06-04 | B67: IE00B2R0SK20 | C67: n/a | D67: EUR | E67: 28.26792208 | F67: 27.10397584 | G67: 13.123 | H67: 0 | I67: 0
A68: 2013-06-05 | B68: IE00B2R0SK20 | C68: n/a | D68: EUR | E68: 26.79599549 | F68: 25.58650826 | G68: 12.936 | H68: 0 | I68: 0
A69: 2013-06-06 | B69: IE00B2R0SK20 | C69: n/a | D69: EUR | E69: 25.89754629 | F69: 24.67696514 | G69: 12.782 | H69: 0 | I69: 0
A70: 2013-06-07 | B70: IE00B2R0SK20 | C70: n/a | D70: EUR | E70: 27.03710628 | F70: 25.83815916 | G70: 12.964 | H70: 0 | I70: 0
A71: 2013-06-10 | B71: IE00B2R0SK20 | C71: n/a | D71: EUR | E71: 26.95525598 | F71: 25.76496777 | G71: 12.966 | H71: 0 | I71: 0
A72: 2013-06-11 | B72: IE00B2R0SK20 | C72: n/a | D72: EUR | E72: 26.05793602 | F72: 24.85704614 | G72: 12.793 | H72: 0 | I72: 0
A73: 2013-06-12 | B73: IE00B2R0SK20 | C73: n/a | D73: EUR | E73: 25.83076509 | F73: 24.62962934 | G73: 12.765 | H73: 0 | I73: 0
A74: 2013-06-13 | B74: IE00B2R0SK20 | C74: n/a | D74: EUR | E74: 25.48057645 | F74: 24.27639426 | G74: 12.738 | H74: 0 | I74: 0
A75: 2013-06-14 | B75: IE00B2R0SK20 | C75: n/a | D75: EUR | E75: 26.19938482 | F75: 25.00933213 | G75: 12.816 | H75: 0 | I75: 0
A76: 2013-06-17 | B76: IE00B2R0SK20 | C76: n/a | D76: EUR | E76: 26.57451541 | F76: 25.40042706 | G76: 12.902 | H76: 0 | I76: 0
A77: 2013-06-18 | B77: IE00B2R0SK20 | C77: n/a | D77: EUR | E77: 27.46082271 | F77: 26.30272985 | G77: 12.926 | H77: 0 | I77: 0
A78: 2013-06-19 | B78: IE00B2R0SK20 | C78: n/a | D78: EUR | E78: 27.06738777 | F78: 25.90667571 | G78: 12.889 | H78: 0 | I78: 0
A79: 2013-06-20 | B79: IE00B2R0SK20 | C79: n/a | D79: EUR | E79: 24.30810077 | F79: 23.10830207 | G79: 12.5 | H79: 0 | I79: 0
A80: 2013-06-21 | B80: IE00B2R0SK20 | C80: n/a | D80: EUR | E80: 23.52630227 | F80: 22.3164058 | G80: 12.35 | H80: 0 | I80: 0
A81: 2013-06-24 | B81: IE00B2R0SK20 | C81: n/a | D81: EUR | E81: 21.65367039 | F81: 20.40037789 | G81: 12.109 | H81: 0 | I81: 0
A82: 2013-06-25 | B82: IE00B2R0SK20 | C82: n/a | D82: EUR | E82: 22.69559129 | F82: 21.46079673 | G82: 12.297 | H82: 0 | I82: 0
A83: 2013-06-26 | B83: IE00B2R0SK20 | C83: n/a | D83: EUR | E83: 24.21398512 | F83: 23.00656157 | G83: 12.56 | H83: 0 | I83: 0
A84: 2013-06-27 | B84: IE00B2R0SK20 | C84: n/a | D84: EUR | E84: 25.55508564 | F84: 24.37045307 | G84: 12.665 | H84: 0 | I84: 0
A85: 2013-06-28 | B85: IE00B2R0SK20 | C85: n/a | D85: EUR | E85: 25.33491711 | F85: 24.1501 | G85: 12.603 | H85: 0 | I85: 0

Sheet IE0034270375
A1: ISIN | B1: Currency | C1: CC | D1: Type
A2: IE0034270375 | B2: GBP | C2: 1770116 | D2: 1 | E2: 1770116 - 1 | F2: TT UK EQUITY FUND
E4: Old | F4: New
A5: Date | B5: ISIN | C5: WKN | D5: Currency | E5: Share profits in % (Aktiengewinn) | F5: Share profits in % (Aktiengewinn) Corporation Tax Act * | G5: Redemption Price | H5: Interim Profit | I5: ADDI
A6: 2013-03-01 | B6: IE0034270375 | C6: n/a | D6: GBP | E6: 21.33736475 | F6: 21.3409 | G6: 19.041 | H6: 0 | I6: 0.02443303
A7: 2013-03-04 | B7: IE0034270375 | C7: n/a | D7: GBP | E7: 20.93801735 | F7: 20.945 | G7: 18.947 | H7: 0 | I7: 0.02443303
A8: 2013-03-05 | B8: IE0034270375 | C8: n/a | D8: GBP | E8: 22.02199222 | F8: 22.0322 | G8: 19.217 | H8: 0 | I8: 0.02443303
A9: 2013-03-06 | B9: IE0034270375 | C9: n/a | D9: GBP | E9: 22.29005373 | F9: 22.2396 | G9: 19.28 | H9: 0 | I9: 0.02443303
A10: 2013-03-07 | B10: IE0034270375 | C10: n/a | D10: GBP | E10: 22.50891518 | F10: 22.4332 | G10: 19.327 | H10: 0 | I10: 0.02443303
A11: 2013-03-08 | B11: IE0034270375 | C11: n/a | D11: GBP | E11: 22.88683515 | F11: 22.8122 | G11: 19.419 | H11: 0 | I11: 0.02443303
A12: 2013-03-11 | B12: IE0034270375 | C12: n/a | D12: GBP | E12: 23.02220389 | F12: 22.9594 | G12: 19.447 | H12: 0 | I12: 0.02443303
A13: 2013-03-12 | B13: IE0034270375 | C13: n/a | D13: GBP | E13: 23.1086006 | F13: 23.049 | G13: 19.463 | H13: 0 | I13: 0.02443303
A14: 2013-03-13 | B14: IE0034270375 | C14: n/a | D14: GBP | E14: 22.91563896 | F14: 22.7225 | G14: 19.43 | H14: 0 | I14: 0.02443303
A15: 2013-03-14 | B15: IE0034270375 | C15: n/a | D15: GBP | E15: 23.37350651 | F15: 23.1849 | G15: 19.56 | H15: 0 | I15: 0.02443303
A16: 2013-03-15 | B16: IE0034270375 | C16: n/a | D16: GBP | E16: 22.96993814 | F16: 22.7816 | G16: 19.449 | H16: 0 | I16: 0.02443303
A17: 2013-03-19 | B17: IE0034270375 | C17: n/a | D17: GBP | E17: 22.66570076 | F17: 22.4898 | G17: 19.39 | H17: 0 | I17: 0.02443303
A18: 2013-03-20 | B18: IE0034270375 | C18: n/a | D18: GBP | E18: 22.88402583 | F18: 22.516 | G18: 19.439 | H18: 0 | I18: 0.02443303
A19: 2013-03-21 | B19: IE0034270375 | C19: n/a | D19: GBP | E19: 22.1197848 | F19: 21.7516 | G19: 19.259 | H19: 0 | I19: 0.02443303
A20: 2013-03-22 | B20: IE0034270375 | C20: n/a | D20: GBP | E20: 22.09762868 | F20: 21.7337 | G20: 19.249 | H20: 0 | I20: 0.02443303
A21: 2013-03-25 | B21: IE0034270375 | C21: n/a | D21: GBP | E21: 21.98607535 | F21: 21.6317 | G21: 19.232 | H21: 0 | I21: 0.02443303
A22: 2013-03-26 | B22: IE0034270375 | C22: n/a | D22: GBP | E22: 22.24824836 | F22: 21.8993 | G22: 19.297 | H22: 0 | I22: 0.02443303
A23: 2013-03-27 | B23: IE0034270375 | C23: n/a | D23: GBP | E23: 22.11323978 | F23: 21.7194 | G23: 19.269 | H23: 0 | I23: 0.02443303
A24: 2013-03-28 | B24: IE0034270375 | C24: n/a | D24: GBP | E24: 22.67938994 | F24: 22.2924 | G24: 19.411 | H24: 0 | I24: 0.02443303
A25: 2013-04-02 | B25: IE0034270375 | C25: n/a | D25: GBP | E25: 23.56309193 | F25: 23.1962 | G25: 19.63 | H25: 0 | I25: 0.02443303
A26: 2013-04-03 | B26: IE0034270375 | C26: n/a | D26: GBP | E26: 22.92329482 | F26: 22.444 | G26: 19.462 | H26: 0 | I26: 0.02443303
A27: 2013-04-04 | B27: IE0034270375 | C27: n/a | D27: GBP | E27: 21.89697359 | F27: 21.4147 | G27: 19.214 | H27: 0 | I27: 0.02443303
A28: 2013-04-05 | B28: IE0034270375 | C28: n/a | D28: GBP | E28: 20.4404416 | F28: 19.9522 | G28: 18.855 | H28: 0 | I28: 0.02443303
A29: 2013-04-08 | B29: IE0034270375 | C29: n/a | D29: GBP | E29: 20.88225179 | F29: 20.4061 | G29: 18.955 | H29: 0 | I29: 0.02443303
A30: 2013-04-09 | B30: IE0034270375 | C30: n/a | D30: GBP | E30: 21.1024849 | F30: 20.6594 | G30: 19.012 | H30: 0 | I30: 0.02443303
A31: 2013-04-10 | B31: IE0034270375 | C31: n/a | D31: GBP | E31: 22.22984484 | F31: 21.769 | G31: 19.285 | H31: 0 | I31: 0.02443303
A32: 2013-04-11 | B32: IE0034270375 | C32: n/a | D32: GBP | E32: 22.81108542 | F32: 22.357 | G32: 19.437 | H32: 0 | I32: 0.02443303
A33: 2013-04-12 | B33: IE0034270375 | C33: n/a | D33: GBP | E33: 22.56737989 | F33: 22.1152 | G33: 19.38 | H33: 0 | I33: 0.02443303
A34: 2013-04-15 | B34: IE0034270375 | C34: n/a | D34: GBP | E34: 22.07735481 | F34: 21.6317 | G34: 19.248 | H34: 0 | I34: 0.02443303
A35: 2013-04-16 | B35: IE0034270375 | C35: n/a | D35: GBP | E35: 21.68273299 | F35: 21.2379 | G35: 19.143 | H35: 0 | I35: 0.02443303
A36: 2013-04-17 | B36: IE0034270375 | C36: n/a | D36: GBP | E36: 20.92301767 | F36: 20.3823 | G36: 18.967 | H36: 0 | I36: 0.02443303
A37: 2013-04-18 | B37: IE0034270375 | C37: n/a | D37: GBP | E37: 20.7931138 | F37: 20.2548 | G37: 18.938 | H37: 0 | I37: 0.02443303
A38: 2013-04-19 | B38: IE0034270375 | C38: n/a | D38: GBP | E38: 21.24854023 | F38: 20.7164 | G38: 19.044 | H38: 0 | I38: 0.02443303
A39: 2013-04-22 | B39: IE0034270375 | C39: n/a | D39: GBP | E39: 21.22252224 | F39: 20.7001 | G39: 19.046 | H39: 0 | I39: 0.02443303
A40: 2013-04-23 | B40: IE0034270375 | C40: n/a | D40: GBP | E40: 22.83701789 | F40: 22.3288 | G40: 19.458 | H40: 0 | I40: 0.02443303
A41: 2013-04-24 | B41: IE0034270375 | C41: n/a | D41: GBP | E41: 23.18090184 | F41: 22.5475 | G41: 19.551 | H41: 0 | I41: 0.02443303
A42: 2013-04-25 | B42: IE0034270375 | C42: n/a | D42: GBP | E42: 23.29458829 | F42: 22.6662 | G42: 19.604 | H42: 0 | I42: 0.02443303
A43: 2013-04-26 | B43: IE0034270375 | C43: n/a | D43: GBP | E43: 23.1484226 | F43: 22.522 | G43: 19.564 | H43: 0 | I43: 0.02443303
A44: 2013-04-29 | B44: IE0034270375 | C44: n/a | D44: GBP | E44: 23.48372077 | F44: 22.8483 | G44: 19.64 | H44: 0 | I44: 0.02443303
A45: 2013-04-30 | B45: IE0034270375 | C45: n/a | D45: GBP | E45: 23.36717653 | F45: 22.74 | G45: 19.605 | H45: 0 | I45: 0.02443303
A46: 2013-05-01 | B46: IE0034270375 | C46: n/a | D46: GBP | E46: 23.84815914 | F46: 23.1753 | G46: 19.727 | H46: 0 | I46: 0.02443303
A47: 2013-05-02 | B47: IE0034270375 | C47: n/a | D47: GBP | E47: 23.69358258 | F47: 23.0231 | G47: 19.701 | H47: 0 | I47: 0.02443303
A48: 2013-05-03 | B48: IE0034270375 | C48: n/a | D48: GBP | E48: 24.37908425 | F48: 23.718 | G48: 19.886 | H48: 0 | I48: 0.02443303
A49: 2013-05-07 | B49: IE0034270375 | C49: n/a | D49: GBP | E49: 24.63326574 | F49: 23.9873 | G49: 19.953 | H49: 0 | I49: 0.02443303
A50: 2013-05-08 | B50: IE0034270375 | C50: n/a | D50: GBP | E50: 25.31527822 | F50: 24.6116 | G50: 20.136 | H50: 0 | I50: 0.02443303
A51: 2013-05-09 | B51: IE0034270375 | C51: n/a | D51: GBP | E51: 25.60342838 | F51: 24.9096 | G51: 20.219 | H51: 0 | I51: 0.02443303
A52: 2013-05-10 | B52: IE0034270375 | C52: n/a | D52: GBP | E52: 25.99541756 | F52: 25.3087 | G52: 20.335 | H52: 0 | I52: 0.02443303
A53: 2013-05-13 | B53: IE0034270375 | C53: n/a | D53: GBP | E53: 26.09335595 | F53: 25.4171 | G53: 20.359 | H53: 0 | I53: 0.02443303
A54: 2013-05-14 | B54: IE0034270375 | C54: n/a | D54: GBP | E54: 26.5974027 | F54: 25.9288 | G54: 20.492 | H54: 0 | I54: 0.02443303
A55: 2013-05-15 | B55: IE0034270375 | C55: n/a | D55: GBP | E55: 26.92431567 | F55: 26.2037 | G55: 20.605 | H55: 0 | I55: 0.02443303
A56: 2013-05-16 | B56: IE0034270375 | C56: n/a | D56: GBP | E56: 26.8381638 | F56: 26.12 | G56: 20.581 | H56: 0 | I56: 0.02443303
A57: 2013-05-17 | B57: IE0034270375 | C57: n/a | D57: GBP | E57: 27.07248035 | F57: 26.36 | G57: 20.653 | H57: 0 | I57: 0.02443303
A58: 2013-05-20 | B58: IE0034270375 | C58: n/a | D58: GBP | E58: 27.54707156 | F58: 26.84879449 | G58: 20.786 | H58: 0 | I58: 0.02443303
A59: 2013-05-21 | B59: IE0034270375 | C59: n/a | D59: GBP | E59: 27.98998373 | F59: 27.29878318 | G59: 20.903 | H59: 0 | I59: 0.02443303
A60: 2013-05-22 | B60: IE0034270375 | C60: n/a | D60: GBP | E60: 28.43406989 | F60: 27.63028029 | G60: 21.021 | H60: 0 | I60: 0.02443303
A61: 2013-05-23 | B61: IE0034270375 | C61: n/a | D61: GBP | E61: 26.90133472 | F61: 26.0830152 | G61: 20.565 | H61: 0 | I61: 0.02443303
A62: 2013-05-24 | B62: IE0034270375 | C62: n/a | D62: GBP | E62: 26.48264043 | F62: 25.66289666 | G62: 20.448 | H62: 0 | I62: 0.02443303
A63: 2013-05-28 | B63: IE0034270375 | C63: n/a | D63: GBP | E63: 27.74379312 | F63: 26.95105393 | G63: 20.812 | H63: 0 | I63: 0.02443303
A64: 2013-05-29 | B64: IE0034270375 | C64: n/a | D64: GBP | E64: 26.28761789 | F64: 25.48488994 | G64: 20.382 | H64: 0 | I64: 0.02443303
A65: 2013-05-30 | B65: IE0034270375 | C65: n/a | D65: GBP | E65: 26.62258388 | F65: 25.8201004 | G65: 20.474 | H65: 0 | I65: 0.02443303
A66: 2013-05-31 | B66: IE0034270375 | C66: n/a | D66: GBP | E66: 25.78526069 | F66: 25.38765921 | G66: 20.249 | H66: 0 | I66: 0.02443303
A67: 2013-06-04 | B67: IE0034270375 | C67: n/a | D67: GBP | E67: 25.49396799 | F67: 24.69554297 | G67: 20.166 | H67: 0 | I67: 0.02443303
A68: 2013-06-05 | B68: IE0034270375 | C68: n/a | D68: GBP | E68: 23.96432957 | F68: 23.13556389 | G68: 19.789 | H68: 0 | I68: 0.02443303
A69: 2013-06-06 | B69: IE0034270375 | C69: n/a | D69: GBP | E69: 22.94879623 | F69: 22.11191505 | G69: 19.521 | H69: 0 | I69: 0.02443303
A70: 2013-06-07 | B70: IE0034270375 | C70: n/a | D70: GBP | E70: 23.87290479 | F70: 23.09145592 | G70: 19.761 | H70: 0 | I70: 0.02443303
A71: 2013-06-10 | B71: IE0034270375 | C71: n/a | D71: GBP | E71: 23.89095028 | F71: 23.11946703 | G71: 19.768 | H71: 0 | I71: 0.02443303
A72: 2013-06-11 | B72: IE0034270375 | C72: n/a | D72: GBP | E72: 22.96151549 | F72: 22.18429414 | G72: 19.514 | H72: 0 | I72: 0.02443303
A73: 2013-06-12 | B73: IE0034270375 | C73: n/a | D73: GBP | E73: 22.6916411 | F73: 21.72170355 | G73: 19.448 | H73: 0 | I73: 0.02443303
A74: 2013-06-13 | B74: IE0034270375 | C74: n/a | D74: GBP | E74: 22.47722776 | F74: 21.50808233 | G74: 19.398 | H74: 0 | I74: 0.02443303
A75: 2013-06-14 | B75: IE0034270375 | C75: n/a | D75: GBP | E75: 22.69567385 | F75: 21.73239774 | G75: 19.452 | H75: 0 | I75: 0.02443303
A76: 2013-06-17 | B76: IE0034270375 | C76: n/a | D76: GBP | E76: 22.98287685 | F76: 22.03333217 | G76: 19.534 | H76: 0 | I76: 0.02443303
A77: 2013-06-18 | B77: IE0034270375 | C77: n/a | D77: GBP | E77: 23.61130146 | F77: 22.67164119 | G77: 19.674 | H77: 0 | I77: 0.02443303
A78: 2013-06-19 | B78: IE0034270375 | C78: n/a | D78: GBP | E78: 23.61652781 | F78: 22.65214611 | G78: 19.657 | H78: 0 | I78: 0.02443303
A79: 2013-06-20 | B79: IE0034270375 | C79: n/a | D79: GBP | E79: 21.46870777 | F79: 20.48058479 | G79: 19.12 | H79: 0 | I79: 0.02443303
A80: 2013-06-21 | B80: IE0034270375 | C80: n/a | D80: GBP | E80: 20.90459356 | F80: 19.91227769 | G80: 18.977 | H80: 0 | I80: 0.02443303
A81: 2013-06-24 | B81: IE0034270375 | C81: n/a | D81: GBP | E81: 19.3134761 | F81: 18.31103986 | G81: 18.602 | H81: 0 | I81: 0.02443303
A82: 2013-06-25 | B82: IE0034270375 | C82: n/a | D82: GBP | E82: 20.611964 | F82: 19.62957739 | G82: 18.92 | H82: 0 | I82: 0.02443303
A83: 2013-06-26 | B83: IE0034270375 | C83: n/a | D83: GBP | E83: 21.7739156 | F83: 20.79027699 | G83: 19.205 | H83: 0 | I83: 0.02443303
A84: 2013-06-27 | B84: IE0034270375 | C84: n/a | D84: GBP | E84: 22.91004609 | F84: 21.94606984 | G84: 19.474 | H84: 0 | I84: 0.02443303
A85: 2013-06-28 | B85: IE0034270375 | C85: n/a | D85: GBP | E85: 22.79378376 | F85: 22.9606 | G85: 19.441 | H85: 0 | I85: 0.02443303

Sheet IE00B2R0SM44
A1: ISIN | B1: Currency | C1: CC | D1: Type
A2: IE00B2R0SM44 | B2: GBP | C2: 1770116 | D2: 2 | E2: 1770116 - 2 | F2: TT UK EQUITY FUND
E4: Old | F4: New
A5: Date | B5: ISIN | C5: WKN | D5: Currency | E5: Share profits in % (Aktiengewinn) | F5: Share profits in % (Aktiengewinn) Corporation Tax Act * | G5: Redemption Price | H5: Interim Profit | I5: ADDI
A6: 2013-03-01 | B6: IE00B2R0SM44 | C6: n/a | D6: GBP | E6: 9.22989835 | F6: 9.2347 | G6: 10.119 | H6: 0 | I6: 0.01829345
A7: 2013-03-04 | B7: IE00B2R0SM44 | C7: n/a | D7: GBP | E7: 8.77076778 | F7: 8.7788 | G7: 10.069 | H7: 0 | I7: 0.01829345
A8: 2013-03-05 | B8: IE00B2R0SM44 | C8: n/a | D8: GBP | E8: 10.02472428 | F8: 10.0372 | G8: 10.212 | H8: 0 | I8: 0.01829345
A9: 2013-03-06 | B9: IE00B2R0SM44 | C9: n/a | D9: GBP | E9: 10.33053563 | F9: 10.2837 | G9: 10.245 | H9: 0 | I9: 0.01829345
A10: 2013-03-07 | B10: IE00B2R0SM44 | C10: n/a | D10: GBP | E10: 10.57716579 | F10: 10.5065 | G10: 10.27 | H10: 0 | I10: 0.01829345
A11: 2013-03-08 | B11: IE00B2R0SM44 | C11: n/a | D11: GBP | E11: 11.01092226 | F11: 10.9426 | G11: 10.319 | H11: 0 | I11: 0.01829345
A12: 2013-03-11 | B12: IE00B2R0SM44 | C12: n/a | D12: GBP | E12: 11.15966204 | F12: 11.1072 | G12: 10.334 | H12: 0 | I12: 0.01829345
A13: 2013-03-12 | B13: IE00B2R0SM44 | C13: n/a | D13: GBP | E13: 11.2544363 | F13: 11.2065 | G13: 10.342 | H13: 0 | I13: 0.01829345
A14: 2013-03-13 | B14: IE00B2R0SM44 | C14: n/a | D14: GBP | E14: 11.03989897 | F14: 10.8598 | G14: 10.324 | H14: 0 | I14: 0.01829345
A15: 2013-03-14 | B15: IE00B2R0SM44 | C15: n/a | D15: GBP | E15: 11.5756279 | F15: 11.4013 | G15: 10.393 | H15: 0 | I15: 0.01829345
A16: 2013-03-15 | B16: IE00B2R0SM44 | C16: n/a | D16: GBP | E16: 11.10363216 | F16: 10.9311 | G16: 10.334 | H16: 0 | I16: 0.01829345
A17: 2013-03-19 | B17: IE00B2R0SM44 | C17: n/a | D17: GBP | E17: 10.75850117 | F17: 10.6038 | G17: 10.302 | H17: 0 | I17: 0.01829345
A18: 2013-03-20 | B18: IE00B2R0SM44 | C18: n/a | D18: GBP | E18: 11.00552256 | F18: 10.6598 | G18: 10.328 | H18: 0 | I18: 0.01829345
A19: 2013-03-21 | B19: IE00B2R0SM44 | C19: n/a | D19: GBP | E19: 10.12886447 | F19: 9.7848 | G19: 10.232 | H19: 0 | I19: 0.01829345
A20: 2013-03-22 | B20: IE00B2R0SM44 | C20: n/a | D20: GBP | E20: 10.09940103 | F20: 9.761 | G20: 10.227 | H20: 0 | I20: 0.01829345
A21: 2013-03-25 | B21: IE00B2R0SM44 | C21: n/a | D21: GBP | E21: 9.97382093 | F21: 9.6491 | G21: 10.217 | H21: 0 | I21: 0.01829345
A22: 2013-03-26 | B22: IE00B2R0SM44 | C22: n/a | D22: GBP | E22: 10.27501593 | F22: 9.957 | G22: 10.252 | H22: 0 | I22: 0.01829345
A23: 2013-03-27 | B23: IE00B2R0SM44 | C23: n/a | D23: GBP | E23: 10.12126577 | F23: 9.7597 | G23: 10.236 | H23: 0 | I23: 0.01829345
A24: 2013-03-28 | B24: IE00B2R0SM44 | C24: n/a | D24: GBP | E24: 10.76980102 | F24: 10.4212 | G24: 10.311 | H24: 0 | I24: 0.01829345
A25: 2013-04-02 | B25: IE00B2R0SM44 | C25: n/a | D25: GBP | E25: 11.78039253 | F25: 11.458 | G25: 10.427 | H25: 0 | I25: 0.01829345
A26: 2013-04-03 | B26: IE00B2R0SM44 | C26: n/a | D26: GBP | E26: 11.03780796 | F26: 10.6047 | G26: 10.338 | H26: 0 | I26: 0.01829345
A27: 2013-04-04 | B27: IE00B2R0SM44 | C27: n/a | D27: GBP | E27: 9.85680605 | F27: 9.4227 | G27: 10.206 | H27: 0 | I27: 0.01829345
A28: 2013-04-05 | B28: IE00B2R0SM44 | C28: n/a | D28: GBP | E28: 8.16948859 | F28: 7.7317 | G28: 10.015 | H28: 0 | I28: 0.01829345
A29: 2013-04-08 | B29: IE00B2R0SM44 | C29: n/a | D29: GBP | E29: 8.67233104 | F29: 8.2504 | G29: 10.067 | H29: 0 | I29: 0.01829345
A30: 2013-04-09 | B30: IE00B2R0SM44 | C30: n/a | D30: GBP | E30: 8.892364 | F30: 8.5402 | G30: 10.097 | H30: 0 | I30: 0.01829345
A31: 2013-04-10 | B31: IE00B2R0SM44 | C31: n/a | D31: GBP | E31: 10.22656805 | F31: 9.8216 | G31: 10.242 | H31: 0 | I31: 0.01829345
A32: 2013-04-11 | B32: IE00B2R0SM44 | C32: n/a | D32: GBP | E32: 10.90076305 | F32: 10.5035 | G32: 10.323 | H32: 0 | I32: 0.01829345
A33: 2013-04-12 | B33: IE00B2R0SM44 | C33: n/a | D33: GBP | E33: 10.61249746 | F33: 10.2284 | G33: 10.291 | H33: 0 | I33: 0.01829345
A34: 2013-04-15 | B34: IE00B2R0SM44 | C34: n/a | D34: GBP | E34: 10.03716445 | F34: 9.6641 | G34: 10.221 | H34: 0 | I34: 0.01829345
A35: 2013-04-16 | B35: IE00B2R0SM44 | C35: n/a | D35: GBP | E35: 9.57531785 | F35: 9.2048 | G35: 10.165 | H35: 0 | I35: 0.01829345
A36: 2013-04-17 | B36: IE00B2R0SM44 | C36: n/a | D36: GBP | E36: 8.70165374 | F36: 8.2373 | G36: 10.071 | H36: 0 | I36: 0.01829345
A37: 2013-04-18 | B37: IE00B2R0SM44 | C37: n/a | D37: GBP | E37: 8.55234352 | F37: 8.0918 | G37: 10.056 | H37: 0 | I37: 0.01829345
A38: 2013-04-19 | B38: IE00B2R0SM44 | C38: n/a | D38: GBP | E38: 9.07442383 | F38: 8.621 | G38: 10.112 | H38: 0 | I38: 0.01829345
A39: 2013-04-22 | B39: IE00B2R0SM44 | C39: n/a | D39: GBP | E39: 9.04622856 | F39: 8.60650779 | G39: 10.112 | H39: 0 | I39: 0.01829345
A40: 2013-04-23 | B40: IE00B2R0SM44 | C40: n/a | D40: GBP | E40: 10.91691657 | F40: 10.49093587 | G40: 10.331 | H40: 0 | I40: 0.01829345
A41: 2013-04-24 | B41: IE00B2R0SM44 | C41: n/a | D41: GBP | E41: 11.31638301 | F41: 10.76621949 | G41: 10.38 | H41: 0 | I41: 0.01829345
A42: 2013-04-25 | B42: IE00B2R0SM44 | C42: n/a | D42: GBP | E42: 11.46112227 | F42: 10.91705802 | G42: 10.408 | H42: 0 | I42: 0.01829345
A43: 2013-04-26 | B43: IE00B2R0SM44 | C43: n/a | D43: GBP | E43: 11.28979713 | F43: 10.74918918 | G43: 10.387 | H43: 0 | I43: 0.01829345
A44: 2013-04-29 | B44: IE00B2R0SM44 | C44: n/a | D44: GBP | E44: 11.66694752 | F44: 11.12107763 | G44: 10.426 | H44: 0 | I44: 0.01829345
A45: 2013-04-30 | B45: IE00B2R0SM44 | C45: n/a | D45: GBP | E45: 11.55430754 | F45: 10.98858569 | G45: 10.411 | H45: 0 | I45: 0.01829345
A46: 2013-05-01 | B46: IE00B2R0SM44 | C46: n/a | D46: GBP | E46: 12.10793288 | F46: 11.49712222 | G46: 10.476 | H46: 0 | I46: 0.01829345
A47: 2013-05-02 | B47: IE00B2R0SM44 | C47: n/a | D47: GBP | E47: 11.93660134 | F47: 11.32951788 | G47: 10.462 | H47: 0 | I47: 0.01829345
A48: 2013-05-03 | B48: IE00B2R0SM44 | C48: n/a | D48: GBP | E48: 12.73049482 | F48: 12.13350339 | G48: 10.56 | H48: 0 | I48: 0.01829345
A49: 2013-05-07 | B49: IE00B2R0SM44 | C49: n/a | D49: GBP | E49: 13.01937704 | F49: 12.44226523 | G49: 10.595 | H49: 0 | I49: 0.01829345
A50: 2013-05-08 | B50: IE00B2R0SM44 | C50: n/a | D50: GBP | E50: 13.80574561 | F50: 13.17157991 | G50: 10.692 | H50: 0 | I50: 0.01829345
A51: 2013-05-09 | B51: IE00B2R0SM44 | C51: n/a | D51: GBP | E51: 14.14023383 | F51: 13.51699103 | G51: 10.736 | H51: 0 | I51: 0.01829345
A52: 2013-05-10 | B52: IE00B2R0SM44 | C52: n/a | D52: GBP | E52: 14.5960421 | F52: 13.98082281 | G52: 10.797 | H52: 0 | I52: 0.01829345
A53: 2013-05-13 | B53: IE00B2R0SM44 | C53: n/a | D53: GBP | E53: 14.70415657 | F53: 14.10321183 | G53: 10.809 | H53: 0 | I53: 0.01829345
A54: 2013-05-14 | B54: IE00B2R0SM44 | C54: n/a | D54: GBP | E54: 15.28133512 | F54: 14.68875654 | G54: 10.88 | H54: 0 | I54: 0.01829345
A55: 2013-05-15 | B55: IE00B2R0SM44 | C55: n/a | D55: GBP | E55: 15.66933163 | F55: 15.02568056 | G55: 10.94 | H55: 0 | I55: 0.01829345
A56: 2013-05-16 | B56: IE00B2R0SM44 | C56: n/a | D56: GBP | E56: 15.56875072 | F56: 14.92889834 | G56: 10.927 | H56: 0 | I56: 0.01829345
A57: 2013-05-17 | B57: IE00B2R0SM44 | C57: n/a | D57: GBP | E57: 15.84581038 | F57: 15.20709533 | G57: 10.966 | H57: 0 | I57: 0.01829345
A58: 2013-05-20 | B58: IE00B2R0SM44 | C58: n/a | D58: GBP | E58: 16.38909894 | F58: 15.76795952 | G58: 11.036 | H58: 0 | I58: 0.01829345
A59: 2013-05-21 | B59: IE00B2R0SM44 | C59: n/a | D59: GBP | E59: 16.89359413 | F59: 16.28054319 | G59: 11.098 | H59: 0 | I59: 0.01829345
A60: 2013-05-22 | B60: IE00B2R0SM44 | C60: n/a | D60: GBP | E60: 17.40249209 | F60: 16.6731659 | G60: 11.161 | H60: 0 | I60: 0.01829345
A61: 2013-05-23 | B61: IE00B2R0SM44 | C61: n/a | D61: GBP | E61: 15.62402151 | F61: 14.88317899 | G61: 10.919 | H61: 0 | I61: 0.01829345
A62: 2013-05-24 | B62: IE00B2R0SM44 | C62: n/a | D62: GBP | E62: 15.13961072 | F62: 14.39909136 | G62: 10.856 | H62: 0 | I62: 0.01829345
A63: 2013-05-28 | B63: IE00B2R0SM44 | C63: n/a | D63: GBP | E63: 16.59477861 | F63: 15.88494201 | G63: 11.049 | H63: 0 | I63: 0.01829345
A64: 2013-05-29 | B64: IE00B2R0SM44 | C64: n/a | D64: GBP | E64: 14.90247677 | F64: 14.18574331 | G64: 10.821 | H64: 0 | I64: 0.01829345
A65: 2013-05-30 | B65: IE00B2R0SM44 | C65: n/a | D65: GBP | E65: 15.2876808 | F65: 14.57208446 | G65: 10.87 | H65: 0 | I65: 0.01829345
A66: 2013-05-31 | B66: IE00B2R0SM44 | C66: n/a | D66: GBP | E66: 14.32323885 | F66: 14.182756 | G66: 10.75 | H66: 0 | I66: 0.01829345
A67: 2013-06-04 | B67: IE00B2R0SM44 | C67: n/a | D67: GBP | E67: 13.98043022 | F67: 13.27665565 | G67: 10.705 | H67: 0 | I67: 0.01829345
A68: 2013-06-05 | B68: IE00B2R0SM44 | C68: n/a | D68: GBP | E68: 12.230291 | F68: 11.49927497 | G68: 10.505 | H68: 0 | I68: 0.01829345
A69: 2013-06-06 | B69: IE00B2R0SM44 | C69: n/a | D69: GBP | E69: 11.05232706 | F69: 10.31579788 | G69: 10.362 | H69: 0 | I69: 0.01829345
A70: 2013-06-07 | B70: IE00B2R0SM44 | C70: n/a | D70: GBP | E70: 12.11975093 | F70: 11.43864396 | G70: 10.49 | H70: 0 | I70: 0.01829345
A71: 2013-06-10 | B71: IE00B2R0SM44 | C71: n/a | D71: GBP | E71: 12.13856349 | F71: 11.47111202 | G71: 10.493 | H71: 0 | I71: 0.01829345
A72: 2013-06-11 | B72: IE00B2R0SM44 | C72: n/a | D72: GBP | E72: 11.05547971 | F72: 10.38490139 | G72: 10.358 | H72: 0 | I72: 0.01829345
A73: 2013-06-12 | B73: IE00B2R0SM44 | C73: n/a | D73: GBP | E73: 10.74375361 | F73: 9.88205222 | G73: 10.323 | H73: 0 | I73: 0.01829345
A74: 2013-06-13 | B74: IE00B2R0SM44 | C74: n/a | D74: GBP | E74: 10.49785652 | F74: 9.63846044 | G74: 10.297 | H74: 0 | I74: 0.01829345
A75: 2013-06-14 | B75: IE00B2R0SM44 | C75: n/a | D75: GBP | E75: 10.74823537 | F75: 9.89561413 | G75: 10.325 | H75: 0 | I75: 0.01829345
A76: 2013-06-17 | B76: IE00B2R0SM44 | C76: n/a | D76: GBP | E76: 11.07542433 | F76: 10.25209039 | G76: 10.368 | H76: 0 | I76: 0.01829345
A77: 2013-06-18 | B77: IE00B2R0SM44 | C77: n/a | D77: GBP | E77: 11.78752707 | F77: 10.97424062 | G77: 10.442 | H77: 0 | I77: 0.01829345
A78: 2013-06-19 | B78: IE00B2R0SM44 | C78: n/a | D78: GBP | E78: 11.78153547 | F78: 10.94471304 | G78: 10.433 | H78: 0 | I78: 0.01829345
A79: 2013-06-20 | B79: IE00B2R0SM44 | C79: n/a | D79: GBP | E79: 9.30017696 | F79: 8.44429189 | G79: 10.148 | H79: 0 | I79: 0.01829345
A80: 2013-06-21 | B80: IE00B2R0SM44 | C80: n/a | D80: GBP | E80: 8.64363914 | F80: 7.78550709 | G80: 10.072 | H80: 0 | I80: 0.01829345
A81: 2013-06-24 | B81: IE00B2R0SM44 | C81: n/a | D81: GBP | E81: 6.80228839 | F81: 5.93956426 | G81: 9.8725 | H81: 0 | I81: 0.01829345
A82: 2013-06-25 | B82: IE00B2R0SM44 | C82: n/a | D82: GBP | E82: 8.31040983 | F82: 7.4662141 | G82: 10.041 | H82: 0 | I82: 0.01829345
A83: 2013-06-26 | B83: IE00B2R0SM44 | C83: n/a | D83: GBP | E83: 9.65437601 | F83: 8.80776849 | G83: 10.192 | H83: 0 | I83: 0.01829345
A84: 2013-06-27 | B84: IE00B2R0SM44 | C84: n/a | D84: GBP | E84: 10.96019062 | F84: 10.12871555 | G84: 10.335 | H84: 0 | I84: 0.01829345
A85: 2013-06-28 | B85: IE00B2R0SM44 | C85: n/a | D85: GBP | E85: 10.81959941 | F85: 11.2952 | G85: 10.317 | H85: 0 | I85: 0.01829345

Sheet IE0030893295
A1: ISIN | B1: Currency | C1: CC | D1: Type
A2: IE0030893295 | B2: EUR | C2: 1770117 | D2: 1 | E2: 1770117 - 1 | F2: TT EUROPEAN EQUITY FUND
E4: Old | F4: New
A5: Date | B5: ISIN | C5: WKN | D5: Currency | E5: Share profits in % (Aktiengewinn) | F5: Share profits in % (Aktiengewinn) Corporation Tax Act * | G5: Redemption Price | H5: Interim Profit | I5: ADDI
A6: 2013-03-01 | B6: IE0030893295 | C6: n/a | D6: EUR | E6: 22.06045297 | F6: 22.0642 | G6: 12.309 | H6: 0 | I6: 0.0136
A7: 2013-03-04 | B7: IE0030893295 | C7: n/a | D7: EUR | E7: 21.91588528 | F7: 21.9348 | G7: 12.285 | H7: 0 | I7: 0.0136
A8: 2013-03-05 | B8: IE0030893295 | C8: n/a | D8: EUR | E8: 23.42799192 | F8: 23.45 | G8: 12.535 | H8: 0 | I8: 0.0136
A9: 2013-03-06 | B9: IE0030893295 | C9: n/a | D9: EUR | E9: 23.46196496 | F9: 23.4419 | G9: 12.541 | H9: 0 | I9: 0.0136
A10: 2013-03-07 | B10: IE0030893295 | C10: n/a | D10: EUR | E10: 23.51477672 | F10: 23.3885 | G10: 12.55 | H10: 0 | I10: 0.0136
A11: 2013-03-08 | B11: IE0030893295 | C11: n/a | D11: EUR | E11: 24.07917335 | F11: 23.9563 | G11: 12.644 | H11: 0 | I11: 0.0136
A12: 2013-03-11 | B12: IE0030893295 | C12: n/a | D12: EUR | E12: 24.01729099 | F12: 23.9059 | G12: 12.628 | H12: 0 | I12: 0.0136
A13: 2013-03-12 | B13: IE0030893295 | C13: n/a | D13: EUR | E13: 24.10056444 | F13: 23.9879 | G13: 12.641 | H13: 0 | I13: 0.0136
A14: 2013-03-13 | B14: IE0030893295 | C14: n/a | D14: EUR | E14: 24.07007449 | F14: 23.8787 | G14: 12.642 | H14: 0 | I14: 0.0136
A15: 2013-03-14 | B15: IE0030893295 | C15: n/a | D15: EUR | E15: 24.80283087 | F15: 24.6213 | G15: 12.771 | H15: 0 | I15: 0.0136
A16: 2013-03-15 | B16: IE0030893295 | C16: n/a | D16: EUR | E16: 24.5217596 | F16: 24.3468 | G16: 12.712 | H16: 0 | I16: 0.0136
A17: 2013-03-19 | B17: IE0030893295 | C17: n/a | D17: EUR | E17: 23.73705914 | F17: 23.54 | G17: 12.591 | H17: 0 | I17: 0.0136
A18: 2013-03-20 | B18: IE0030893295 | C18: n/a | D18: EUR | E18: 24.20271471 | F18: 24.0112 | G18: 12.665 | H18: 0 | I18: 0.0136
A19: 2013-03-21 | B19: IE0030893295 | C19: n/a | D19: EUR | E19: 23.48395202 | F19: 23.2561 | G19: 12.55 | H19: 0 | I19: 0.0136
A20: 2013-03-22 | B20: IE0030893295 | C20: n/a | D20: EUR | E20: 23.33590431 | F20: 23.0997 | G20: 12.52 | H20: 0 | I20: 0.0136
A21: 2013-03-25 | B21: IE0030893295 | C21: n/a | D21: EUR | E21: 23.17271119 | F21: 22.9409 | G21: 12.498 | H21: 0 | I21: 0.0136
A22: 2013-03-26 | B22: IE0030893295 | C22: n/a | D22: EUR | E22: 23.45642208 | F22: 23.2292 | G22: 12.547 | H22: 0 | I22: 0.0136
A23: 2013-03-27 | B23: IE0030893295 | C23: n/a | D23: EUR | E23: 23.30042791 | F23: 22.9126 | G23: 12.522 | H23: 0 | I23: 0.0136
A24: 2013-03-28 | B24: IE0030893295 | C24: n/a | D24: EUR | E24: 23.80998713 | F24: 23.3295 | G24: 12.599 | H24: 0 | I24: 0.0136
A25: 2013-04-02 | B25: IE0030893295 | C25: n/a | D25: EUR | E25: 24.8634392 | F25: 24.4092 | G25: 12.773 | H25: 0 | I25: 0.0136
A26: 2013-04-03 | B26: IE0030893295 | C26: n/a | D26: EUR | E26: 24.18231239 | F26: 23.6691 | G26: 12.652 | H26: 0 | I26: 0.0136
A27: 2013-04-04 | B27: IE0030893295 | C27: n/a | D27: EUR | E27: 23.33588643 | F27: 22.8204 | G27: 12.512 | H27: 0 | I27: 0.0136
A28: 2013-04-05 | B28: IE0030893295 | C28: n/a | D28: EUR | E28: 21.84577177 | F28: 21.3052 | G28: 12.266 | H28: 0 | I28: 0.0136
A29: 2013-04-08 | B29: IE0030893295 | C29: n/a | D29: EUR | E29: 22.24883701 | F29: 21.7238 | G29: 12.328 | H29: 0 | I29: 0.0136
A30: 2013-04-09 | B30: IE0030893295 | C30: n/a | D30: EUR | E30: 22.3572157 | F30: 21.8009 | G30: 12.341 | H30: 0 | I30: 0.0136
A31: 2013-04-10 | B31: IE0030893295 | C31: n/a | D31: EUR | E31: 23.80563347 | F31: 23.2793 | G31: 12.579 | H31: 0 | I31: 0.0136
A32: 2013-04-11 | B32: IE0030893295 | C32: n/a | D32: EUR | E32: 24.35463253 | F32: 23.8361 | G32: 12.676 | H32: 0 | I32: 0.0136
A33: 2013-04-12 | B33: IE0030893295 | C33: n/a | D33: EUR | E33: 23.67526596 | F33: 23.156 | G33: 12.561 | H33: 0 | I33: 0.0136
A34: 2013-04-15 | B34: IE0030893295 | C34: n/a | D34: EUR | E34: 23.28498094 | F34: 22.6977 | G34: 12.492 | H34: 0 | I34: 0.0136
A35: 2013-04-16 | B35: IE0030893295 | C35: n/a | D35: EUR | E35: 22.73820816 | F35: 22.1512 | G35: 12.393 | H35: 0 | I35: 0.0136
A36: 2013-04-17 | B36: IE0030893295 | C36: n/a | D36: EUR | E36: 21.49119851 | F36: 20.8412 | G36: 12.195 | H36: 0 | I36: 0.0136
A37: 2013-04-18 | B37: IE0030893295 | C37: n/a | D37: EUR | E37: 21.29867347 | F37: 20.6503 | G37: 12.164 | H37: 0 | I37: 0.0136
A38: 2013-04-19 | B38: IE0030893295 | C38: n/a | D38: EUR | E38: 21.88464454 | F38: 21.2362 | G38: 12.253 | H38: 0 | I38: 0.0136
A39: 2013-04-22 | B39: IE0030893295 | C39: n/a | D39: EUR | E39: 21.99869412 | F39: 21.3631 | G39: 12.282 | H39: 0 | I39: 0.0136
A40: 2013-04-23 | B40: IE0030893295 | C40: n/a | D40: EUR | E40: 23.95000552 | F40: 23.3337 | G40: 12.604 | H40: 0 | I40: 0.0136
A41: 2013-04-24 | B41: IE0030893295 | C41: n/a | D41: EUR | E41: 24.40229764 | F41: 23.753 | G41: 12.688 | H41: 0 | I41: 0.0136
A42: 2013-04-25 | B42: IE0030893295 | C42: n/a | D42: EUR | E42: 25.00754967 | F42: 24.33 | G42: 12.807 | H42: 0 | I42: 0.0136
A43: 2013-04-26 | B43: IE0030893295 | C43: n/a | D43: EUR | E43: 24.75026458 | F43: 23.9899 | G43: 12.761 | H43: 0 | I43: 0.0136
A44: 2013-04-29 | B44: IE0030893295 | C44: n/a | D44: EUR | E44: 25.16016122 | F44: 24.3497 | G44: 12.817 | H44: 0 | I44: 0.0136
A45: 2013-04-30 | B45: IE0030893295 | C45: n/a | D45: EUR | E45: 24.91841128 | F45: 24.1547 | G45: 12.771 | H45: 0 | I45: 0.0136
A46: 2013-05-01 | B46: IE0030893295 | C46: n/a | D46: EUR | E46: 25.04468671 | F46: 24.2703 | G46: 12.79 | H46: 0 | I46: 0.0136
A47: 2013-05-02 | B47: IE0030893295 | C47: n/a | D47: EUR | E47: 25.42518363 | F47: 24.5753 | G47: 12.87 | H47: 0 | I47: 0.0136
A48: 2013-05-03 | B48: IE0030893295 | C48: n/a | D48: EUR | E48: 26.26061386 | F48: 25.4246 | G48: 13.019 | H48: 0 | I48: 0.0136
A49: 2013-05-07 | B49: IE0030893295 | C49: n/a | D49: EUR | E49: 26.50888444 | F49: 25.6654 | G49: 13.066 | H49: 0 | I49: 0.0136
A50: 2013-05-08 | B50: IE0030893295 | C50: n/a | D50: EUR | E50: 27.29128801 | F50: 26.4201 | G50: 13.196 | H50: 0 | I50: 0.0136
A51: 2013-05-09 | B51: IE0030893295 | C51: n/a | D51: EUR | E51: 27.4413907 | F51: 26.5714 | G51: 13.228 | H51: 0 | I51: 0.0136
A52: 2013-05-10 | B52: IE0030893295 | C52: n/a | D52: EUR | E52: 27.6838128 | F52: 26.8123 | G52: 13.283 | H52: 0 | I52: 0.0136
A53: 2013-05-13 | B53: IE0030893295 | C53: n/a | D53: EUR | E53: 27.44316463 | F53: 26.5811 | G53: 13.237 | H53: 0 | I53: 0.0136
A54: 2013-05-14 | B54: IE0030893295 | C54: n/a | D54: EUR | E54: 27.95616917 | F54: 27.1013 | G54: 13.314 | H54: 0 | I54: 0.0136
A55: 2013-05-15 | B55: IE0030893295 | C55: n/a | D55: EUR | E55: 28.73587276 | F55: 27.8824 | G55: 13.479 | H55: 0 | I55: 0.0136
A56: 2013-05-16 | B56: IE0030893295 | C56: n/a | D56: EUR | E56: 29.67406378 | F56: 27.4844 | G56: 13.653 | H56: 0 | I56: 0.0136
A57: 2013-05-17 | B57: IE0030893295 | C57: n/a | D57: EUR | E57: 30.01845885 | F57: 27.7776 | G57: 13.729 | H57: 0 | I57: 0.0136
A58: 2013-05-20 | B58: IE0030893295 | C58: n/a | D58: EUR | E58: 30.42663134 | F58: 28.10442358 | G58: 13.806 | H58: 0 | I58: 0.0136
A59: 2013-05-21 | B59: IE0030893295 | C59: n/a | D59: EUR | E59: 30.37056633 | F59: 28.04987329 | G59: 13.787 | H59: 0 | I59: 0.0136
A60: 2013-05-22 | B60: IE0030893295 | C60: n/a | D60: EUR | E60: 30.64532556 | F60: 28.31153582 | G60: 13.841 | H60: 0 | I60: 0.0136
A61: 2013-05-23 | B61: IE0030893295 | C61: n/a | D61: EUR | E61: 28.92633435 | F61: 26.53756464 | G61: 13.494 | H61: 0 | I61: 0.0136
A62: 2013-05-24 | B62: IE0030893295 | C62: n/a | D62: EUR | E62: 28.84314277 | F62: 26.44345723 | G62: 13.474 | H62: 0 | I62: 0.0136
A63: 2013-05-28 | B63: IE0030893295 | C63: n/a | D63: EUR | E63: 29.92943295 | F63: 27.56905122 | G63: 13.681 | H63: 0 | I63: 0.0136
A64: 2013-05-29 | B64: IE0030893295 | C64: n/a | D64: EUR | E64: 28.55808942 | F64: 26.15659785 | G64: 13.417 | H64: 0 | I64: 0.0136
A65: 2013-05-30 | B65: IE0030893295 | C65: n/a | D65: EUR | E65: 28.83718203 | F65: 26.44881272 | G65: 13.465 | H65: 0 | I65: 0.0136
A66: 2013-05-31 | B66: IE0030893295 | C66: n/a | D66: EUR | E66: 28.18684083 | F66: 25.995612 | G66: 13.353 | H66: 0 | I66: 0.0136
A67: 2013-06-04 | B67: IE0030893295 | C67: n/a | D67: EUR | E67: 27.86643128 | F67: 25.43752651 | G67: 13.292 | H67: 0 | I67: 0.0136
A68: 2013-06-05 | B68: IE0030893295 | C68: n/a | D68: EUR | E68: 26.78149965 | F68: 24.32058258 | G68: 13.1 | H68: 0 | I68: 0.0136
A69: 2013-06-06 | B69: IE0030893295 | C69: n/a | D69: EUR | E69: 25.73765948 | F69: 23.24507521 | G69: 12.909 | H69: 0 | I69: 0.0136
A70: 2013-06-07 | B70: IE0030893295 | C70: n/a | D70: EUR | E70: 26.98660173 | F70: 24.56999976 | G70: 13.128 | H70: 0 | I70: 0.0136
A71: 2013-06-10 | B71: IE0030893295 | C71: n/a | D71: EUR | E71: 26.94978942 | F71: 24.54433961 | G71: 13.124 | H71: 0 | I71: 0.0136
A72: 2013-06-11 | B72: IE0030893295 | C72: n/a | D72: EUR | E72: 25.8650737 | F72: 23.4269197 | G72: 12.924 | H72: 0 | I72: 0.0136
A73: 2013-06-12 | B73: IE0030893295 | C73: n/a | D73: EUR | E73: 25.5709169 | F73: 23.04477693 | G73: 12.873 | H73: 0 | I73: 0.0136
A74: 2013-06-13 | B74: IE0030893295 | C74: n/a | D74: EUR | E74: 25.39151259 | F74: 22.86387237 | G74: 12.847 | H74: 0 | I74: 0.0136
A75: 2013-06-14 | B75: IE0030893295 | C75: n/a | D75: EUR | E75: 25.68795121 | F75: 23.17483127 | G75: 12.898 | H75: 0 | I75: 0.0136
A76: 2013-06-17 | B76: IE0030893295 | C76: n/a | D76: EUR | E76: 26.16098778 | F76: 23.6763337 | G76: 12.983 | H76: 0 | I76: 0.0136
A77: 2013-06-18 | B77: IE0030893295 | C77: n/a | D77: EUR | E77: 26.15489579 | F77: 23.67269215 | G77: 12.969 | H77: 0 | I77: 0.0136
A78: 2013-06-19 | B78: IE0030893295 | C78: n/a | D78: EUR | E78: 25.99448073 | F78: 23.49920325 | G78: 12.95 | H78: 0 | I78: 0.0136
A79: 2013-06-20 | B79: IE0030893295 | C79: n/a | D79: EUR | E79: 23.71456574 | F79: 21.14674654 | G79: 12.573 | H79: 0 | I79: 0.0136
A80: 2013-06-21 | B80: IE0030893295 | C80: n/a | D80: EUR | E80: 22.80825595 | F80: 20.21261156 | G80: 12.422 | H80: 0 | I80: 0.0136
A81: 2013-06-24 | B81: IE0030893295 | C81: n/a | D81: EUR | E81: 21.38175207 | F81: 18.71788445 | G81: 12.199 | H81: 0 | I81: 0.0136
A82: 2013-06-25 | B82: IE0030893295 | C82: n/a | D82: EUR | E82: 22.7287925 | F82: 20.11584392 | G82: 12.419 | H82: 0 | I82: 0.0136
A83: 2013-06-26 | B83: IE0030893295 | C83: n/a | D83: EUR | E83: 24.23780049 | F83: 21.66416919 | G83: 12.669 | H83: 0 | I83: 0.0136
A84: 2013-06-27 | B84: IE0030893295 | C84: n/a | D84: EUR | E84: 24.7333857 | F84: 22.18037239 | G84: 12.744 | H84: 0 | I84: 0.0136
A85: 2013-06-28 | B85: IE0030893295 | C85: n/a | D85: EUR | E85: 24.40505352 | F85: 21.8453 | G85: 12.689 | H85: 0 | I85: 0.0136

Sheet IE00B1DPRZ29
A1: ISIN | B1: Currency | C1: CC | D1: Type
A2: IE00B1DPRZ29 | B2: EUR | C2: 1770117 | D2: 2 | E2: 1770117 - 2 | F2: TT EUROPEAN EQUITY FUND
E4: Old | F4: New
A5: Date | B5: ISIN | C5: WKN | D5: Currency | E5: Share profits in % (Aktiengewinn) | F5: Share profits in % (Aktiengewinn) Corporation Tax Act * | G5: Redemption Price | H5: Interim Profit | I5: ADDI
A6: 2013-03-01 | B6: IE00B1DPRZ29 | C6: n/a | D6: EUR | E6: -23.05602775 | F6: -23.051 | G6: 8.124 | H6: 0 | I6: 0.0117
A7: 2013-03-04 | B7: IE00B1DPRZ29 | C7: n/a | D7: EUR | E7: -23.29287719 | F7: -23.2679 | G7: 8.108 | H7: 0 | I7: 0.0117
A8: 2013-03-05 | B8: IE00B1DPRZ29 | C8: n/a | D8: EUR | E8: -20.88090625 | F8: -20.8516 | G8: 8.273 | H8: 0 | I8: 0.0117
A9: 2013-03-06 | B9: IE00B1DPRZ29 | C9: n/a | D9: EUR | E9: -20.82906946 | F9: -20.8405 | G9: 8.276 | H9: 0 | I9: 0.0117
A10: 2013-03-07 | B10: IE00B1DPRZ29 | C10: n/a | D10: EUR | E10: -20.74410631 | F10: -20.8604 | G10: 8.283 | H10: 0 | I10: 0.0117
A11: 2013-03-08 | B11: IE00B1DPRZ29 | C11: n/a | D11: EUR | E11: -19.85370577 | F11: -19.9654 | G11: 8.344 | H11: 0 | I11: 0.0117
A12: 2013-03-11 | B12: IE00B1DPRZ29 | C12: n/a | D12: EUR | E12: -19.97019395 | F12: -20.0707 | G12: 8.334 | H12: 0 | I12: 0.0117
A13: 2013-03-12 | B13: IE00B1DPRZ29 | C13: n/a | D13: EUR | E13: -19.8434872 | F13: -19.9439 | G13: 8.342 | H13: 0 | I13: 0.0117
A14: 2013-03-13 | B14: IE00B1DPRZ29 | C14: n/a | D14: EUR | E14: -19.88013965 | F14: -20.0529 | G14: 8.342 | H14: 0 | I14: 0.0117
A15: 2013-03-14 | B15: IE00B1DPRZ29 | C15: n/a | D15: EUR | E15: -18.70356961 | F15: -18.8653 | G15: 8.427 | H15: 0 | I15: 0.0117
A16: 2013-03-15 | B16: IE00B1DPRZ29 | C16: n/a | D16: EUR | E16: -19.18363851 | F16: -19.3421 | G16: 8.388 | H16: 0 | I16: 0.0117
A17: 2013-03-19 | B17: IE00B1DPRZ29 | C17: n/a | D17: EUR | E17: -20.40097006 | F17: -20.5708 | G17: 8.308 | H17: 0 | I17: 0.0117
A18: 2013-03-20 | B18: IE00B1DPRZ29 | C18: n/a | D18: EUR | E18: -19.67871554 | F18: -19.8418 | G18: 8.356 | H18: 0 | I18: 0.0117
A19: 2013-03-21 | B19: IE00B1DPRZ29 | C19: n/a | D19: EUR | E19: -20.80006321 | F19: -20.9979 | G19: 8.281 | H19: 0 | I19: 0.0117
A20: 2013-03-22 | B20: IE00B1DPRZ29 | C20: n/a | D20: EUR | E20: -21.0509693 | F20: -21.2604 | G20: 8.261 | H20: 0 | I20: 0.0117
A21: 2013-03-25 | B21: IE00B1DPRZ29 | C21: n/a | D21: EUR | E21: -21.30275707 | F21: -21.4983 | G21: 8.246 | H21: 0 | I21: 0.0117
A22: 2013-03-26 | B22: IE00B1DPRZ29 | C22: n/a | D22: EUR | E22: -20.84841707 | F22: -21.0381 | G22: 8.278 | H22: 0 | I22: 0.0117
A23: 2013-03-27 | B23: IE00B1DPRZ29 | C23: n/a | D23: EUR | E23: -21.06397327 | F23: -21.4383 | G23: 8.263 | H23: 0 | I23: 0.0117
A24: 2013-03-28 | B24: IE00B1DPRZ29 | C24: n/a | D24: EUR | E24: -20.2971429 | F24: -20.751 | G24: 8.314 | H24: 0 | I24: 0.0117
A25: 2013-04-02 | B25: IE00B1DPRZ29 | C25: n/a | D25: EUR | E25: -18.64940425 | F25: -19.0707 | G25: 8.428 | H25: 0 | I25: 0.0117
A26: 2013-04-03 | B26: IE00B1DPRZ29 | C26: n/a | D26: EUR | E26: -19.75106513 | F26: -20.2296 | G26: 8.348 | H26: 0 | I26: 0.0117
A27: 2013-04-04 | B27: IE00B1DPRZ29 | C27: n/a | D27: EUR | E27: -21.09022753 | F27: -21.5694 | G27: 8.255 | H27: 0 | I27: 0.0117
A28: 2013-04-05 | B28: IE00B1DPRZ29 | C28: n/a | D28: EUR | E28: -23.47395092 | F28: -23.9762 | G28: 8.093 | H28: 0 | I28: 0.0117
A29: 2013-04-08 | B29: IE00B1DPRZ29 | C29: n/a | D29: EUR | E29: -22.84539084 | F29: -23.3284 | G29: 8.134 | H29: 0 | I29: 0.0117
A30: 2013-04-09 | B30: IE00B1DPRZ29 | C30: n/a | D30: EUR | E30: -22.64531579 | F30: -23.2056 | G30: 8.142 | H30: 0 | I30: 0.0117
A31: 2013-04-10 | B31: IE00B1DPRZ29 | C31: n/a | D31: EUR | E31: -20.39114156 | F31: -20.8738 | G31: 8.299 | H31: 0 | I31: 0.0117
A32: 2013-04-11 | B32: IE00B1DPRZ29 | C32: n/a | D32: EUR | E32: -19.50650591 | F32: -19.9804 | G32: 8.363 | H32: 0 | I32: 0.0117
A33: 2013-04-12 | B33: IE00B1DPRZ29 | C33: n/a | D33: EUR | E33: -20.58863381 | F33: -21.0616 | G33: 8.287 | H33: 0 | I33: 0.0117
A34: 2013-04-15 | B34: IE00B1DPRZ29 | C34: n/a | D34: EUR | E34: -21.22938175 | F34: -21.7661 | G34: 8.241 | H34: 0 | I34: 0.0117
A35: 2013-04-16 | B35: IE00B1DPRZ29 | C35: n/a | D35: EUR | E35: -22.13279691 | F35: -22.6673 | G35: 8.176 | H35: 0 | I35: 0.0117
A36: 2013-04-17 | B36: IE00B1DPRZ29 | C36: n/a | D36: EUR | E36: -24.11146721 | F36: -24.7068 | G36: 8.045 | H36: 0 | I36: 0.0117
A37: 2013-04-18 | B37: IE00B1DPRZ29 | C37: n/a | D37: EUR | E37: -24.41960589 | F37: -25.0119 | G37: 8.024 | H37: 0 | I37: 0.0117
A38: 2013-04-19 | B38: IE00B1DPRZ29 | C38: n/a | D38: EUR | E38: -23.50399305 | F38: -24.0954 | G38: 8.083 | H38: 0 | I38: 0.0117
A39: 2013-04-22 | B39: IE00B1DPRZ29 | C39: n/a | D39: EUR | E39: -23.28650985 | F39: -23.8611 | G39: 8.102 | H39: 0 | I39: 0.0117
A40: 2013-04-23 | B40: IE00B1DPRZ29 | C40: n/a | D40: EUR | E40: -20.17991527 | F40: -20.7355 | G40: 8.314 | H40: 0 | I40: 0.0117
A41: 2013-04-24 | B41: IE00B1DPRZ29 | C41: n/a | D41: EUR | E41: -19.43953755 | F41: -20.0273 | G41: 8.369 | H41: 0 | I41: 0.0117
A42: 2013-04-25 | B42: IE00B1DPRZ29 | C42: n/a | D42: EUR | E42: -18.4284788 | F42: -19.0437 | G42: 8.447 | H42: 0 | I42: 0.0117
A43: 2013-04-26 | B43: IE00B1DPRZ29 | C43: n/a | D43: EUR | E43: -18.84448783 | F43: -19.5409 | G43: 8.417 | H43: 0 | I43: 0.0117
A44: 2013-04-29 | B44: IE00B1DPRZ29 | C44: n/a | D44: EUR | E44: -18.24890453 | F44: -18.9918 | G44: 8.454 | H44: 0 | I44: 0.0117
A45: 2013-04-30 | B45: IE00B1DPRZ29 | C45: n/a | D45: EUR | E45: -18.6468279 | F45: -19.3415 | G45: 8.423 | H45: 0 | I45: 0.0117
A46: 2013-05-01 | B46: IE00B1DPRZ29 | C46: n/a | D46: EUR | E46: -18.45708904 | F46: -19.1611 | G46: 8.436 | H46: 0 | I46: 0.0117
A47: 2013-05-02 | B47: IE00B1DPRZ29 | C47: n/a | D47: EUR | E47: -17.80984135 | F47: -18.5885 | G47: 8.488 | H47: 0 | I47: 0.0117
A48: 2013-05-03 | B48: IE00B1DPRZ29 | C48: n/a | D48: EUR | E48: -16.47887785 | F48: -17.2432 | G48: 8.587 | H48: 0 | I48: 0.0117
A49: 2013-05-07 | B49: IE00B1DPRZ29 | C49: n/a | D49: EUR | E49: -16.08523349 | F49: -16.8519 | G49: 8.617 | H49: 0 | I49: 0.0117
A50: 2013-05-08 | B50: IE00B1DPRZ29 | C50: n/a | D50: EUR | E50: -14.88453142 | F50: -15.6784 | G50: 8.703 | H50: 0 | I50: 0.0117
A51: 2013-05-09 | B51: IE00B1DPRZ29 | C51: n/a | D51: EUR | E51: -14.63370523 | F51: -15.4252 | G51: 8.724 | H51: 0 | I51: 0.0117
A52: 2013-05-10 | B52: IE00B1DPRZ29 | C52: n/a | D52: EUR | E52: -14.2165141 | F52: -15.0085 | G52: 8.76 | H52: 0 | I52: 0.0117
A53: 2013-05-13 | B53: IE00B1DPRZ29 | C53: n/a | D53: EUR | E53: -14.60921355 | F53: -15.3875 | G53: 8.729 | H53: 0 | I53: 0.0117
A54: 2013-05-14 | B54: IE00B1DPRZ29 | C54: n/a | D54: EUR | E54: -13.85522143 | F54: -14.6256 | G54: 8.78 | H54: 0 | I54: 0.0117
A55: 2013-05-15 | B55: IE00B1DPRZ29 | C55: n/a | D55: EUR | E55: -12.5654386 | F55: -13.3341 | G55: 8.888 | H55: 0 | I55: 0.0117
A56: 2013-05-16 | B56: IE00B1DPRZ29 | C56: n/a | D56: EUR | E56: -11.10172272 | F56: -13.2064 | G56: 9.003 | H56: 0 | I56: 0.0117
A57: 2013-05-17 | B57: IE00B1DPRZ29 | C57: n/a | D57: EUR | E57: -10.53184951 | F57: -12.6869 | G57: 9.053 | H57: 0 | I57: 0.0117
A58: 2013-05-20 | B58: IE00B1DPRZ29 | C58: n/a | D58: EUR | E58: -9.90222719 | F58: -12.13515881 | G58: 9.104 | H58: 0 | I58: 0.0117
A59: 2013-05-21 | B59: IE00B1DPRZ29 | C59: n/a | D59: EUR | E59: -10.01543856 | F59: -12.24541987 | G59: 9.091 | H59: 0 | I59: 0.0117
A60: 2013-05-22 | B60: IE00B1DPRZ29 | C60: n/a | D60: EUR | E60: -9.58607408 | F60: -11.82819494 | G60: 9.126 | H60: 0 | I60: 0.0117
A61: 2013-05-23 | B61: IE00B1DPRZ29 | C61: n/a | D61: EUR | E61: -12.33698685 | F61: -14.63042664 | G61: 8.898 | H61: 0 | I61: 0.0117
A62: 2013-05-24 | B62: IE00B1DPRZ29 | C62: n/a | D62: EUR | E62: -12.48299267 | F62: -14.78589523 | G62: 8.884 | H62: 0 | I62: 0.0117
A63: 2013-05-28 | B63: IE00B1DPRZ29 | C63: n/a | D63: EUR | E63: -10.778424 | F63: -13.03831383 | G63: 9.02 | H63: 0 | I63: 0.0117
A64: 2013-05-29 | B64: IE00B1DPRZ29 | C64: n/a | D64: EUR | E64: -12.95280892 | F64: -15.25050001 | G64: 8.846 | H64: 0 | I64: 0.0117
A65: 2013-05-30 | B65: IE00B1DPRZ29 | C65: n/a | D65: EUR | E65: -12.52448493 | F65: -14.80812215 | G65: 8.878 | H65: 0 | I65: 0.0117
A66: 2013-05-31 | B66: IE00B1DPRZ29 | C66: n/a | D66: EUR | E66: -13.52517246 | F66: -15.1372912 | G66: 8.804 | H66: 0 | I66: 0.0117
A67: 2013-06-04 | B67: IE00B1DPRZ29 | C67: n/a | D67: EUR | E67: -14.04213462 | F67: -16.3583424 | G67: 8.763 | H67: 0 | I67: 0.0117
A68: 2013-06-05 | B68: IE00B1DPRZ29 | C68: n/a | D68: EUR | E68: -15.74469908 | F68: -18.08993203 | G68: 8.636 | H68: 0 | I68: 0.0117
A69: 2013-06-06 | B69: IE00B1DPRZ29 | C69: n/a | D69: EUR | E69: -17.41740278 | F69: -19.79127205 | G69: 8.51 | H69: 0 | I69: 0.0117
A70: 2013-06-07 | B70: IE00B1DPRZ29 | C70: n/a | D70: EUR | E70: -15.44899819 | F70: -17.74757838 | G70: 8.655 | H70: 0 | I70: 0.0117
A71: 2013-06-10 | B71: IE00B1DPRZ29 | C71: n/a | D71: EUR | E71: -15.50518108 | F71: -17.7886304 | G71: 8.651 | H71: 0 | I71: 0.0117
A72: 2013-06-11 | B72: IE00B1DPRZ29 | C72: n/a | D72: EUR | E72: -17.2492418 | F72: -19.56217302 | G72: 8.519 | H72: 0 | I72: 0.0117
A73: 2013-06-12 | B73: IE00B1DPRZ29 | C73: n/a | D73: EUR | E73: -17.7147304 | F73: -20.11383904 | G73: 8.486 | H73: 0 | I73: 0.0117
A74: 2013-06-13 | B74: IE00B1DPRZ29 | C74: n/a | D74: EUR | E74: -17.98248511 | F74: -20.38153158 | G74: 8.469 | H74: 0 | I74: 0.0117
A75: 2013-06-14 | B75: IE00B1DPRZ29 | C75: n/a | D75: EUR | E75: -17.51832542 | F75: -19.90204775 | G75: 8.502 | H75: 0 | I75: 0.0117
A76: 2013-06-17 | B76: IE00B1DPRZ29 | C76: n/a | D76: EUR | E76: -16.76486927 | F76: -19.11707189 | G76: 8.558 | H76: 0 | I76: 0.0117
A77: 2013-06-18 | B77: IE00B1DPRZ29 | C77: n/a | D77: EUR | E77: -16.81896366 | F77: -19.16725972 | G77: 8.549 | H77: 0 | I77: 0.0117
A78: 2013-06-19 | B78: IE00B1DPRZ29 | C78: n/a | D78: EUR | E78: -17.04335324 | F78: -19.40321567 | G78: 8.536 | H78: 0 | I78: 0.0117
A79: 2013-06-20 | B79: IE00B1DPRZ29 | C79: n/a | D79: EUR | E79: -20.61538548 | F79: -23.04238031 | G79: 8.287 | H79: 0 | I79: 0.0117
A80: 2013-06-21 | B80: IE00B1DPRZ29 | C80: n/a | D80: EUR | E80: -22.06323685 | F80: -24.51501612 | G80: 8.188 | H80: 0 | I80: 0.0117
A81: 2013-06-24 | B81: IE00B1DPRZ29 | C81: n/a | D81: EUR | E81: -24.31654681 | F81: -26.82991579 | G81: 8.04 | H81: 0 | I81: 0.0117
A82: 2013-06-25 | B82: IE00B1DPRZ29 | C82: n/a | D82: EUR | E82: -22.16023268 | F82: -24.62406682 | G82: 8.185 | H82: 0 | I82: 0.0117
A83: 2013-06-26 | B83: IE00B1DPRZ29 | C83: n/a | D83: EUR | E83: -19.76809168 | F83: -22.19426306 | G83: 8.35 | H83: 0 | I83: 0.0117
A84: 2013-06-27 | B84: IE00B1DPRZ29 | C84: n/a | D84: EUR | E84: -19.01415316 | F84: -21.41927497 | G84: 8.399 | H84: 0 | I84: 0.0117
A85: 2013-06-28 | B85: IE00B1DPRZ29 | C85: n/a | D85: EUR | E85: -19.5345607 | F85: -21.944439 | G85: 8.363 | H85: 0 | I85: 0.0117

Sheet IE00B2R0SD52
A1: ISIN | B1: Currency | C1: CC | D1: Type
A2: IE00B2R0SD52 | B2: EUR | C2: 1770117 | D2: 4 | E2: 1770117 - 4 | F2: TT EUROPEAN EQUITY FUND
E4: Old | F4: New
A5: Date | B5: ISIN | C5: WKN | D5: Currency | E5: Share profits in % (Aktiengewinn) | F5: Share profits in % (Aktiengewinn) Corporation Tax Act * | G5: Redemption Price | H5: Interim Profit | I5: ADDI
A6: 2013-03-01 | B6: IE00B2R0SD52 | C6: n/a | D6: EUR | E6: 14.25836053 | F6: 14.2634 | G6: 12.29 | H6: 0 | I6: 0.187
A7: 2013-03-04 | B7: IE00B2R0SD52 | C7: n/a | D7: EUR | E7: 14.09117651 | F7: 14.1204 | G7: 12.266 | H7: 0 | I7: 0.187
A8: 2013-03-05 | B8: IE00B2R0SD52 | C8: n/a | D8: EUR | E8: 15.75818147 | F8: 15.7916 | G8: 12.515 | H8: 0 | I8: 0.187
A9: 2013-03-06 | B9: IE00B2R0SD52 | C9: n/a | D9: EUR | E9: 15.79438334 | F9: 15.7872 | G9: 12.52 | H9: 0 | I9: 0.187
A10: 2013-03-07 | B10: IE00B2R0SD52 | C10: n/a | D10: EUR | E10: 15.85588093 | F10: 15.7391 | G10: 12.53 | H10: 0 | I10: 0.187
A11: 2013-03-08 | B11: IE00B2R0SD52 | C11: n/a | D11: EUR | E11: 16.4758691 | F11: 16.3637 | G11: 12.624 | H11: 0 | I11: 0.187
A12: 2013-03-11 | B12: IE00B2R0SD52 | C12: n/a | D12: EUR | E12: 16.40112387 | F12: 16.3044 | G12: 12.607 | H12: 0 | I12: 0.187
A13: 2013-03-12 | B13: IE00B2R0SD52 | C13: n/a | D13: EUR | E13: 16.4910727 | F13: 16.3945 | G13: 12.62 | H13: 0 | I13: 0.187
A14: 2013-03-13 | B14: IE00B2R0SD52 | C14: n/a | D14: EUR | E14: 16.4555066 | F14: 16.2866 | G14: 12.62 | H14: 0 | I14: 0.187
A15: 2013-03-14 | B15: IE00B2R0SD52 | C15: n/a | D15: EUR | E15: 17.26431282 | F15: 17.1063 | G15: 12.749 | H15: 0 | I15: 0.187
A16: 2013-03-15 | B16: IE00B2R0SD52 | C16: n/a | D16: EUR | E16: 16.95181292 | F16: 16.796 | G16: 12.69 | H16: 0 | I16: 0.187
A17: 2013-03-19 | B17: IE00B2R0SD52 | C17: n/a | D17: EUR | E17: 16.08546061 | F17: 15.9184 | G17: 12.568 | H17: 0 | I17: 0.187
A18: 2013-03-20 | B18: IE00B2R0SD52 | C18: n/a | D18: EUR | E18: 16.59475256 | F18: 16.4344 | G18: 12.642 | H18: 0 | I18: 0.187
A19: 2013-03-21 | B19: IE00B2R0SD52 | C19: n/a | D19: EUR | E19: 15.80531542 | F19: 15.6103 | G19: 12.527 | H19: 0 | I19: 0.187
A20: 2013-03-22 | B20: IE00B2R0SD52 | C20: n/a | D20: EUR | E20: 15.64193908 | F20: 15.4349 | G20: 12.498 | H20: 0 | I20: 0.187
A21: 2013-03-25 | B21: IE00B2R0SD52 | C21: n/a | D21: EUR | E21: 15.45734555 | F21: 15.2642 | G21: 12.475 | H21: 0 | I21: 0.187
A22: 2013-03-26 | B22: IE00B2R0SD52 | C22: n/a | D22: EUR | E22: 15.76979324 | F22: 15.5825 | G22: 12.523 | H22: 0 | I22: 0.187
A23: 2013-03-27 | B23: IE00B2R0SD52 | C23: n/a | D23: EUR | E23: 15.53350806 | F23: 15.2675 | G23: 12.485 | H23: 0 | I23: 0.187
A24: 2013-03-28 | B24: IE00B2R0SD52 | C24: n/a | D24: EUR | E24: 16.09213525 | F24: 15.7313 | G24: 12.561 | H24: 0 | I24: 0.187
A25: 2013-04-02 | B25: IE00B2R0SD52 | C25: n/a | D25: EUR | E25: 17.24549427 | F25: 16.9159 | G25: 12.734 | H25: 0 | I25: 0.187
A26: 2013-04-03 | B26: IE00B2R0SD52 | C26: n/a | D26: EUR | E26: 16.48989905 | F26: 16.1039 | G26: 12.613 | H26: 0 | I26: 0.187
A27: 2013-04-04 | B27: IE00B2R0SD52 | C27: n/a | D27: EUR | E27: 15.55634248 | F27: 15.1708 | G27: 12.473 | H27: 0 | I27: 0.187
A28: 2013-04-05 | B28: IE00B2R0SD52 | C28: n/a | D28: EUR | E28: 13.90867234 | F28: 13.5022 | G28: 12.227 | H28: 0 | I28: 0.187
A29: 2013-04-08 | B29: IE00B2R0SD52 | C29: n/a | D29: EUR | E29: 14.3487011 | F29: 13.961 | G29: 12.289 | H29: 0 | I29: 0.187
A30: 2013-04-09 | B30: IE00B2R0SD52 | C30: n/a | D30: EUR | E30: 15.753126 | F30: 14.0462 | G30: 12.302 | H30: 0 | I30: 0.187
A31: 2013-04-10 | B31: IE00B2R0SD52 | C31: n/a | D31: EUR | E31: 16.06112745 | F31: 15.6719 | G31: 12.539 | H31: 0 | I31: 0.187
A32: 2013-04-11 | B32: IE00B2R0SD52 | C32: n/a | D32: EUR | E32: 16.66819372 | F32: 16.287 | G32: 12.636 | H32: 0 | I32: 0.187
A33: 2013-04-12 | B33: IE00B2R0SD52 | C33: n/a | D33: EUR | E33: 15.91739794 | F33: 15.538 | G33: 12.521 | H33: 0 | I33: 0.187
A34: 2013-04-15 | B34: IE00B2R0SD52 | C34: n/a | D34: EUR | E34: 15.48066455 | F34: 15.038 | G34: 12.451 | H34: 0 | I34: 0.187
A35: 2013-04-16 | B35: IE00B2R0SD52 | C35: n/a | D35: EUR | E35: 14.8705317 | F35: 14.4307 | G35: 12.353 | H35: 0 | I35: 0.187
A36: 2013-04-17 | B36: IE00B2R0SD52 | C36: n/a | D36: EUR | E36: 13.49436385 | F36: 12.9953 | G36: 12.155 | H36: 0 | I36: 0.187
A37: 2013-04-18 | B37: IE00B2R0SD52 | C37: n/a | D37: EUR | E37: 13.28069808 | F37: 12.7849 | G37: 12.124 | H37: 0 | I37: 0.187
A38: 2013-04-19 | B38: IE00B2R0SD52 | C38: n/a | D38: EUR | E38: 13.92362636 | F38: 13.428 | G38: 12.213 | H38: 0 | I38: 0.187
A39: 2013-04-22 | B39: IE00B2R0SD52 | C39: n/a | D39: EUR | E39: 14.0532477 | F39: 13.5742 | G39: 12.241 | H39: 0 | I39: 0.187
A40: 2013-04-23 | B40: IE00B2R0SD52 | C40: n/a | D40: EUR | E40: 16.2064432 | F40: 15.7439 | G40: 12.562 | H40: 0 | I40: 0.187
A41: 2013-04-24 | B41: IE00B2R0SD52 | C41: n/a | D41: EUR | E41: 16.70846203 | F41: 16.2132 | G41: 12.645 | H41: 0 | I41: 0.187
A42: 2013-04-25 | B42: IE00B2R0SD52 | C42: n/a | D42: EUR | E42: 17.38410986 | F42: 16.8605 | G42: 12.763 | H42: 0 | I42: 0.187
A43: 2013-04-26 | B43: IE00B2R0SD52 | C43: n/a | D43: EUR | E43: 17.09813618 | F43: 16.4937 | G43: 12.717 | H43: 0 | I43: 0.187
A44: 2013-04-29 | B44: IE00B2R0SD52 | C44: n/a | D44: EUR | E44: 17.53817998 | F44: 16.8868 | G44: 12.772 | H44: 0 | I44: 0.187
A45: 2013-04-30 | B45: IE00B2R0SD52 | C45: n/a | D45: EUR | E45: 17.26817743 | F45: 16.6655 | G45: 12.727 | H45: 0 | I45: 0.187
A46: 2013-05-01 | B46: IE00B2R0SD52 | C46: n/a | D46: EUR | E46: 17.40477431 | F46: 16.7925 | G46: 12.746 | H46: 0 | I46: 0.187
A47: 2013-05-02 | B47: IE00B2R0SD52 | C47: n/a | D47: EUR | E47: 17.83128497 | F47: 17.1439 | G47: 12.825 | H47: 0 | I47: 0.187
A48: 2013-05-03 | B48: IE00B2R0SD52 | C48: n/a | D48: EUR | E48: 18.75295141 | F48: 18.0788 | G48: 12.974 | H48: 0 | I48: 0.187
A49: 2013-05-07 | B49: IE00B2R0SD52 | C49: n/a | D49: EUR | E49: 19.02353537 | F49: 18.3467 | G49: 13.019 | H49: 0 | I49: 0.187
A50: 2013-05-08 | B50: IE00B2R0SD52 | C50: n/a | D50: EUR | E50: 19.87879482 | F50: 19.1743 | G50: 13.149 | H50: 0 | I50: 0.187
A51: 2013-05-09 | B51: IE00B2R0SD52 | C51: n/a | D51: EUR | E51: 20.04580399 | F51: 19.3434 | G51: 13.18 | H51: 0 | I51: 0.187
A52: 2013-05-10 | B52: IE00B2R0SD52 | C52: n/a | D52: EUR | E52: 20.3181572 | F52: 19.6149 | G52: 13.236 | H52: 0 | I52: 0.187
A53: 2013-05-13 | B53: IE00B2R0SD52 | C53: n/a | D53: EUR | E53: 20.04838219 | F53: 19.3591 | G53: 13.189 | H53: 0 | I53: 0.187
A54: 2013-05-14 | B54: IE00B2R0SD52 | C54: n/a | D54: EUR | E54: 20.60289854 | F54: 19.9211 | G54: 13.265 | H54: 0 | I54: 0.187
A55: 2013-05-15 | B55: IE00B2R0SD52 | C55: n/a | D55: EUR | E55: 21.47153817 | F55: 20.7903 | G55: 13.429 | H55: 0 | I55: 0.187
A56: 2013-05-16 | B56: IE00B2R0SD52 | C56: n/a | D56: EUR | E56: 22.50139565 | F56: 20.4831 | G56: 13.603 | H56: 0 | I56: 0.187
A57: 2013-05-17 | B57: IE00B2R0SD52 | C57: n/a | D57: EUR | E57: 22.88468595 | F57: 20.8155 | G57: 13.679 | H57: 0 | I57: 0.187
A58: 2013-05-20 | B58: IE00B2R0SD52 | C58: n/a | D58: EUR | E58: 23.3295367 | F58: 21.18201985 | G58: 13.755 | H58: 0 | I58: 0.187
A59: 2013-05-21 | B59: IE00B2R0SD52 | C59: n/a | D59: EUR | E59: 23.26265406 | F59: 21.11820536 | G59: 13.735 | H59: 0 | I59: 0.187
A60: 2013-05-22 | B60: IE00B2R0SD52 | C60: n/a | D60: EUR | E60: 23.56386533 | F60: 21.40694622 | G60: 13.789 | H60: 0 | I60: 0.187
A61: 2013-05-23 | B61: IE00B2R0SD52 | C61: n/a | D61: EUR | E61: 21.66363643 | F61: 19.45758577 | G61: 13.444 | H61: 0 | I61: 0.187
A62: 2013-05-24 | B62: IE00B2R0SD52 | C62: n/a | D62: EUR | E62: 21.56861085 | F62: 19.35322754 | G62: 13.423 | H62: 0 | I62: 0.187
A63: 2013-05-28 | B63: IE00B2R0SD52 | C63: n/a | D63: EUR | E63: 22.76070394 | F63: 20.58701825 | G63: 13.629 | H63: 0 | I63: 0.187
A64: 2013-05-29 | B64: IE00B2R0SD52 | C64: n/a | D64: EUR | E64: 21.24731658 | F64: 19.03752818 | G64: 13.365 | H64: 0 | I64: 0.187
A65: 2013-05-30 | B65: IE00B2R0SD52 | C65: n/a | D65: EUR | E65: 21.55191299 | F65: 19.35585735 | G65: 13.414 | H65: 0 | I65: 0.187
A66: 2013-05-31 | B66: IE00B2R0SD52 | C66: n/a | D66: EUR | E66: 20.8390668 | F66: 19.1275463 | G66: 13.301 | H66: 0 | I66: 0.187
A67: 2013-06-04 | B67: IE00B2R0SD52 | C67: n/a | D67: EUR | E67: 20.48084976 | F67: 18.25337326 | G67: 13.24 | H67: 0 | I67: 0.187
A68: 2013-06-05 | B68: IE00B2R0SD52 | C68: n/a | D68: EUR | E68: 19.28625901 | F68: 17.03106103 | G68: 13.048 | H68: 0 | I68: 0.187
A69: 2013-06-06 | B69: IE00B2R0SD52 | C69: n/a | D69: EUR | E69: 18.1308417 | F69: 15.84833708 | G69: 12.858 | H69: 0 | I69: 0.187
A70: 2013-06-07 | B70: IE00B2R0SD52 | C70: n/a | D70: EUR | E70: 19.5058134 | F70: 17.29707358 | G70: 13.077 | H70: 0 | I70: 0.187
A71: 2013-06-10 | B71: IE00B2R0SD52 | C71: n/a | D71: EUR | E71: 19.46317855 | F71: 17.26960387 | G71: 13.072 | H71: 0 | I71: 0.187
A72: 2013-06-11 | B72: IE00B2R0SD52 | C72: n/a | D72: EUR | E72: 18.26136579 | F72: 16.03970209 | G72: 12.872 | H72: 0 | I72: 0.187
A73: 2013-06-12 | B73: IE00B2R0SD52 | C73: n/a | D73: EUR | E73: 17.93617477 | F73: 15.62869128 | G73: 12.821 | H73: 0 | I73: 0.187
A74: 2013-06-13 | B74: IE00B2R0SD52 | C74: n/a | D74: EUR | E74: 17.74037671 | F74: 15.4331404 | G74: 12.795 | H74: 0 | I74: 0.187
A75: 2013-06-14 | B75: IE00B2R0SD52 | C75: n/a | D75: EUR | E75: 18.06558777 | F75: 15.77331983 | G75: 12.845 | H75: 0 | I75: 0.187
A76: 2013-06-17 | B76: IE00B2R0SD52 | C76: n/a | D76: EUR | E76: 18.58568088 | F76: 16.32432971 | G76: 12.93 | H76: 0 | I76: 0.187
A77: 2013-06-18 | B77: IE00B2R0SD52 | C77: n/a | D77: EUR | E77: 18.5703072 | F77: 16.31296025 | G77: 12.916 | H77: 0 | I77: 0.187
A78: 2013-06-19 | B78: IE00B2R0SD52 | C78: n/a | D78: EUR | E78: 18.3977856 | F78: 16.1290081 | G78: 12.897 | H78: 0 | I78: 0.187
A79: 2013-06-20 | B79: IE00B2R0SD52 | C79: n/a | D79: EUR | E79: 15.88899437 | F79: 13.55581931 | G79: 12.521 | H79: 0 | I79: 0.187
A80: 2013-06-21 | B80: IE00B2R0SD52 | C80: n/a | D80: EUR | E80: 14.88623106 | F80: 12.52941223 | G80: 12.371 | H80: 0 | I80: 0.187
A81: 2013-06-24 | B81: IE00B2R0SD52 | C81: n/a | D81: EUR | E81: 13.31111038 | F81: 10.89444779 | G81: 12.148 | H81: 0 | I81: 0.187
A82: 2013-06-25 | B82: IE00B2R0SD52 | C82: n/a | D82: EUR | E82: 14.80024188 | F82: 12.43139702 | G82: 12.367 | H82: 0 | I82: 0.187
A83: 2013-06-26 | B83: IE00B2R0SD52 | C83: n/a | D83: EUR | E83: 16.46441832 | F83: 14.13136524 | G83: 12.615 | H83: 0 | I83: 0.187
A84: 2013-06-27 | B84: IE00B2R0SD52 | C84: n/a | D84: EUR | E84: 17.00481789 | F84: 14.69226552 | G84: 12.69 | H84: 0 | I84: 0.187
A85: 2013-06-28 | B85: IE00B2R0SD52 | C85: n/a | D85: EUR | E85: 16.64172745 | F85: 14.3248 | G85: 12.635 | H85: 0 | I85: 0.187

Sheet IE00B4Q6B737
A1: ISIN | B1: Currency | C1: CC | D1: Type
A2: IE00B4Q6B737 | B2: USD | C2: 1770118 | D2: 1 | E2: 1770118 - 1 | F2: TT ASIA-PACIFIC EQUITY FU
E4: Old | F4: New
A5: Date | B5: ISIN | C5: WKN | D5: Currency | E5: Share profits in % (Aktiengewinn) | F5: Share profits in % (Aktiengewinn) Corporation Tax Act * | G5: Redemption Price | H5: Interim Profit | I5: ADDI
A6: 2013-03-01 | B6: IE00B4Q6B737 | C6: n/a | D6: USD | E6: 25.81442766 | F6: 25.8123 | G6: 12.427 | H6: 0 | I6: 0.0028
A7: 2013-03-04 | B7: IE00B4Q6B737 | C7: n/a | D7: USD | E7: 24.60604335 | F7: 24.5323 | G7: 12.221 | H7: 0 | I7: 0.0028
A8: 2013-03-05 | B8: IE00B4Q6B737 | C8: n/a | D8: USD | E8: 25.33440798 | F8: 25.2769 | G8: 12.356 | H8: 0 | I8: 0.0028
A9: 2013-03-06 | B9: IE00B4Q6B737 | C9: n/a | D9: USD | E9: 25.99190341 | F9: 25.8912 | G9: 12.483 | H9: 0 | I9: 0.0028
A10: 2013-03-07 | B10: IE00B4Q6B737 | C10: n/a | D10: USD | E10: 25.74572543 | F10: 25.6461 | G10: 12.457 | H10: 0 | I10: 0.0028
A11: 2013-03-08 | B11: IE00B4Q6B737 | C11: n/a | D11: USD | E11: 25.87145906 | F11: 25.808 | G11: 12.498 | H11: 0 | I11: 0.0028
A12: 2013-03-11 | B12: IE00B4Q6B737 | C12: n/a | D12: USD | E12: 25.99392424 | F12: 25.9472 | G12: 12.524 | H12: 0 | I12: 0.0028
A13: 2013-03-12 | B13: IE00B4Q6B737 | C13: n/a | D13: USD | E13: 25.65543582 | F13: 25.6141 | G13: 12.468 | H13: 0 | I13: 0.0028
A14: 2013-03-13 | B14: IE00B4Q6B737 | C14: n/a | D14: USD | E14: 25.08406495 | F14: 25.0367 | G14: 12.362 | H14: 0 | I14: 0.0028
A15: 2013-03-14 | B15: IE00B4Q6B737 | C15: n/a | D15: USD | E15: 24.93221186 | F15: 24.8897 | G15: 12.342 | H15: 0 | I15: 0.0028
A16: 2013-03-15 | B16: IE00B4Q6B737 | C16: n/a | D16: USD | E16: 25.06218739 | F16: 25.0228 | G16: 12.356 | H16: 0 | I16: 0.0028
A17: 2013-03-19 | B17: IE00B4Q6B737 | C17: n/a | D17: USD | E17: 24.04049757 | F17: 24.0129 | G17: 12.166 | H17: 0 | I17: 0.0028
A18: 2013-03-20 | B18: IE00B4Q6B737 | C18: n/a | D18: USD | E18: 24.05594382 | F18: 23.9845 | G18: 12.164 | H18: 0 | I18: 0.0028
A19: 2013-03-21 | B19: IE00B4Q6B737 | C19: n/a | D19: USD | E19: 23.99676909 | F19: 23.9273 | G19: 12.148 | H19: 0 | I19: 0.0028
A20: 2013-03-22 | B20: IE00B4Q6B737 | C20: n/a | D20: USD | E20: 23.92418267 | F20: 23.8596 | G20: 12.134 | H20: 0 | I20: 0.0028
A21: 2013-03-25 | B21: IE00B4Q6B737 | C21: n/a | D21: USD | E21: 24.56949364 | F21: 24.5158 | G21: 12.239 | H21: 0 | I21: 0.0028
A22: 2013-03-26 | B22: IE00B4Q6B737 | C22: n/a | D22: USD | E22: 24.58270551 | F22: 24.5313 | G22: 12.24 | H22: 0 | I22: 0.0028
A23: 2013-03-27 | B23: IE00B4Q6B737 | C23: n/a | D23: USD | E23: 24.92278748 | F23: 24.8789 | G23: 12.295 | H23: 0 | I23: 0.0028
A24: 2013-03-28 | B24: IE00B4Q6B737 | C24: n/a | D24: USD | E24: 24.48503445 | F24: 24.4573 | G24: 12.225 | H24: 0 | I24: 0.0028
A25: 2013-04-02 | B25: IE00B4Q6B737 | C25: n/a | D25: USD | E25: 24.82907445 | F25: 24.8228 | G25: 12.306 | H25: 0 | I25: 0.0028
A26: 2013-04-03 | B26: IE00B4Q6B737 | C26: n/a | D26: USD | E26: 24.67312213 | F26: 24.6697 | G26: 12.276 | H26: 0 | I26: 0.0028
A27: 2013-04-04 | B27: IE00B4Q6B737 | C27: n/a | D27: USD | E27: 24.30065055 | F27: 24.3025 | G27: 12.182 | H27: 0 | I27: 0.0028
A28: 2013-04-05 | B28: IE00B4Q6B737 | C28: n/a | D28: USD | E28: 23.32582022 | F28: 23.3536 | G28: 12.042 | H28: 0 | I28: 0.0028
A29: 2013-04-08 | B29: IE00B4Q6B737 | C29: n/a | D29: USD | E29: 22.987139 | F29: 23.0258 | G29: 11.966 | H29: 0 | I29: 0.0028
A30: 2013-04-09 | B30: IE00B4Q6B737 | C30: n/a | D30: USD | E30: 23.54886 | F30: 23.7127 | G30: 12.064 | H30: 0 | I30: 0.0028
A31: 2013-04-10 | B31: IE00B4Q6B737 | C31: n/a | D31: USD | E31: 24.10443116 | F31: 24.1271 | G31: 12.151 | H31: 0 | I31: 0.0028
A32: 2013-04-11 | B32: IE00B4Q6B737 | C32: n/a | D32: USD | E32: 24.93916508 | F32: 24.9727 | G32: 12.291 | H32: 0 | I32: 0.0028
A33: 2013-04-12 | B33: IE00B4Q6B737 | C33: n/a | D33: USD | E33: 24.69620481 | F33: 24.7333 | G33: 12.218 | H33: 0 | I33: 0.0028
A34: 2013-04-15 | B34: IE00B4Q6B737 | C34: n/a | D34: USD | E34: 23.87716089 | F34: 23.9244 | G34: 12.103 | H34: 0 | I34: 0.0028
A35: 2013-04-16 | B35: IE00B4Q6B737 | C35: n/a | D35: USD | E35: 23.80659922 | F35: 23.8564 | G35: 12.115 | H35: 0 | I35: 0.0028
A36: 2013-04-17 | B36: IE00B4Q6B737 | C36: n/a | D36: USD | E36: 23.95949482 | F36: 24.0124 | G36: 12.126 | H36: 0 | I36: 0.0028
A37: 2013-04-18 | B37: IE00B4Q6B737 | C37: n/a | D37: USD | E37: 23.41480572 | F37: 23.4713 | G37: 12.065 | H37: 0 | I37: 0.0028
A38: 2013-04-19 | B38: IE00B4Q6B737 | C38: n/a | D38: USD | E38: 24.10852865 | F38: 24.1677 | G38: 12.178 | H38: 0 | I38: 0.0028
A39: 2013-04-22 | B39: IE00B4Q6B737 | C39: n/a | D39: USD | E39: 24.64464264 | F39: 24.7135 | G39: 12.271 | H39: 0 | I39: 0.0028
A40: 2013-04-23 | B40: IE00B4Q6B737 | C40: n/a | D40: USD | E40: 24.47404196 | F40: 24.5466 | G40: 12.241 | H40: 0 | I40: 0.0028
A41: 2013-04-24 | B41: IE00B4Q6B737 | C41: n/a | D41: USD | E41: 25.48264346 | F41: 25.5576 | G41: 12.414 | H41: 0 | I41: 0.0028
A42: 2013-04-25 | B42: IE00B4Q6B737 | C42: n/a | D42: USD | E42: 25.74689834 | F42: 25.7942 | G42: 12.482 | H42: 0 | I42: 0.0028
A43: 2013-04-26 | B43: IE00B4Q6B737 | C43: n/a | D43: USD | E43: 25.62364128 | F43: 25.6747 | G43: 12.453 | H43: 0 | I43: 0.0028
A44: 2013-04-29 | B44: IE00B4Q6B737 | C44: n/a | D44: USD | E44: 26.09635244 | F44: 26.1386 | G44: 12.531 | H44: 0 | I44: 0.0028
A45: 2013-04-30 | B45: IE00B4Q6B737 | C45: n/a | D45: USD | E45: 26.93859032 | F45: 26.9731 | G45: 12.678 | H45: 0 | I45: 0.0028
A46: 2013-05-01 | B46: IE00B4Q6B737 | C46: n/a | D46: USD | E46: 26.71885777 | F46: 26.757 | G46: 12.64 | H46: 0 | I46: 0.0028
A47: 2013-05-02 | B47: IE00B4Q6B737 | C47: n/a | D47: USD | E47: 26.59262 | F47: 26.6342 | G47: 12.635 | H47: 0 | I47: 0.0028
A48: 2013-05-03 | B48: IE00B4Q6B737 | C48: n/a | D48: USD | E48: 26.57651367 | F48: 26.6212 | G48: 12.631 | H48: 0 | I48: 0.0028
A49: 2013-05-07 | B49: IE00B4Q6B737 | C49: n/a | D49: USD | E49: 26.77901049 | F49: 26.7904 | G49: 12.676 | H49: 0 | I49: 0.0028
A50: 2013-05-08 | B50: IE00B4Q6B737 | C50: n/a | D50: USD | E50: 27.42356565 | F50: 27.4376 | G50: 12.803 | H50: 0 | I50: 0.0028
A51: 2013-05-09 | B51: IE00B4Q6B737 | C51: n/a | D51: USD | E51: 27.35828191 | F51: 27.2454 | G51: 12.778 | H51: 0 | I51: 0.0028
A52: 2013-05-10 | B52: IE00B4Q6B737 | C52: n/a | D52: USD | E52: 26.81935292 | F52: 26.7122 | G52: 12.67 | H52: 0 | I52: 0.0028
A53: 2013-05-13 | B53: IE00B4Q6B737 | C53: n/a | D53: USD | E53: 26.47352504 | F53: 26.3765 | G53: 12.599 | H53: 0 | I53: 0.0028
A54: 2013-05-14 | B54: IE00B4Q6B737 | C54: n/a | D54: USD | E54: 26.53846717 | F54: 26.3658 | G54: 12.616 | H54: 0 | I54: 0.0028
A55: 2013-05-15 | B55: IE00B4Q6B737 | C55: n/a | D55: USD | E55: 26.48264103 | F55: 26.3067 | G55: 12.64 | H55: 0 | I55: 0.0028
A56: 2013-05-16 | B56: IE00B4Q6B737 | C56: n/a | D56: USD | E56: 26.29496557 | F56: 26.1232 | G56: 12.61 | H56: 0 | I56: 0.0028
A57: 2013-05-17 | B57: IE00B4Q6B737 | C57: n/a | D57: USD | E57: 26.13105761 | F57: 25.9651 | G57: 12.579 | H57: 0 | I57: 0.0028
A58: 2013-05-20 | B58: IE00B4Q6B737 | C58: n/a | D58: USD | E58: 26.95432883 | F58: 26.79923948 | G58: 12.714 | H58: 0 | I58: 0.0028
A59: 2013-05-21 | B59: IE00B4Q6B737 | C59: n/a | D59: USD | E59: 26.36055149 | F59: 26.20792175 | G59: 12.611 | H59: 0 | I59: 0.0028
A60: 2013-05-22 | B60: IE00B4Q6B737 | C60: n/a | D60: USD | E60: 25.92818942 | F60: 25.76741306 | G60: 12.521 | H60: 0 | I60: 0.0028
A61: 2013-05-23 | B61: IE00B4Q6B737 | C61: n/a | D61: USD | E61: 24.64515282 | F61: 24.48450782 | G61: 12.287 | H61: 0 | I61: 0.0028
A62: 2013-05-24 | B62: IE00B4Q6B737 | C62: n/a | D62: USD | E62: 24.34491932 | F62: 24.14686035 | G62: 12.239 | H62: 0 | I62: 0.0028
A63: 2013-05-28 | B63: IE00B4Q6B737 | C63: n/a | D63: USD | E63: 24.60146926 | F63: 24.41878442 | G63: 12.301 | H63: 0 | I63: 0.0028
A64: 2013-05-29 | B64: IE00B4Q6B737 | C64: n/a | D64: USD | E64: 24.2033863 | F64: 24.02351488 | G64: 12.237 | H64: 0 | I64: 0.0028
A65: 2013-05-30 | B65: IE00B4Q6B737 | C65: n/a | D65: USD | E65: 24.03467192 | F65: 23.65753919 | G65: 12.212 | H65: 0 | I65: 0.0028
A66: 2013-05-31 | B66: IE00B4Q6B737 | C66: n/a | D66: USD | E66: 23.63450017 | F66: 23.451293 | G66: 12.115 | H66: 0 | I66: 0.0028
A67: 2013-06-04 | B67: IE00B4Q6B737 | C67: n/a | D67: USD | E67: 23.37986754 | F67: 22.98006497 | G67: 12.058 | H67: 0 | I67: 0.0028
A68: 2013-06-05 | B68: IE00B4Q6B737 | C68: n/a | D68: USD | E68: 22.52584878 | F68: 22.10902908 | G68: 11.923 | H68: 0 | I68: 0.0028
A69: 2013-06-06 | B69: IE00B4Q6B737 | C69: n/a | D69: USD | E69: 21.81742026 | F69: 21.39994915 | G69: 11.808 | H69: 0 | I69: 0.0028
A70: 2013-06-07 | B70: IE00B4Q6B737 | C70: n/a | D70: USD | E70: 20.93506909 | F70: 20.49041569 | G70: 11.668 | H70: 0 | I70: 0.0028
A71: 2013-06-10 | B71: IE00B4Q6B737 | C71: n/a | D71: USD | E71: 20.87031291 | F71: 20.37544674 | G71: 11.65 | H71: 0 | I71: 0.0028
A72: 2013-06-11 | B72: IE00B4Q6B737 | C72: n/a | D72: USD | E72: 20.09289956 | F72: 19.59704906 | G72: 11.522 | H72: 0 | I72: 0.0028
A73: 2013-06-12 | B73: IE00B4Q6B737 | C73: n/a | D73: USD | E73: 20.11111033 | F73: 19.6165041 | G73: 11.525 | H73: 0 | I73: 0.0028
A74: 2013-06-13 | B74: IE00B4Q6B737 | C74: n/a | D74: USD | E74: 19.06032399 | F74: 18.34226207 | G74: 11.362 | H74: 0 | I74: 0.0028
A75: 2013-06-14 | B75: IE00B4Q6B737 | C75: n/a | D75: USD | E75: 20.21727191 | F75: 19.51356829 | G75: 11.554 | H75: 0 | I75: 0.0028
A76: 2013-06-17 | B76: IE00B4Q6B737 | C76: n/a | D76: USD | E76: 20.49827119 | F76: 19.75013505 | G76: 11.6 | H76: 0 | I76: 0.0028
A77: 2013-06-18 | B77: IE00B4Q6B737 | C77: n/a | D77: USD | E77: 20.29795393 | F77: 19.55291043 | G77: 11.555 | H77: 0 | I77: 0.0028
A78: 2013-06-19 | B78: IE00B4Q6B737 | C78: n/a | D78: USD | E78: 20.37117588 | F78: 19.62875944 | G78: 11.571 | H78: 0 | I78: 0.0028
A79: 2013-06-20 | B79: IE00B4Q6B737 | C79: n/a | D79: USD | E79: 17.37684064 | F79: 16.61598694 | G79: 11.114 | H79: 0 | I79: 0.0028
A80: 2013-06-21 | B80: IE00B4Q6B737 | C80: n/a | D80: USD | E80: 17.03542685 | F80: 16.27513771 | G80: 11.077 | H80: 0 | I80: 0.0028
A81: 2013-06-24 | B81: IE00B4Q6B737 | C81: n/a | D81: USD | E81: 15.6407263 | F81: 14.87616798 | G81: 10.886 | H81: 0 | I81: 0.0028
A82: 2013-06-25 | B82: IE00B4Q6B737 | C82: n/a | D82: USD | E82: 15.22737357 | F82: 14.47685388 | G82: 10.834 | H82: 0 | I82: 0.0028
A83: 2013-06-26 | B83: IE00B4Q6B737 | C83: n/a | D83: USD | E83: 16.62200267 | F83: 15.88480437 | G83: 11.005 | H83: 0 | I83: 0.0028
A84: 2013-06-27 | B84: IE00B4Q6B737 | C84: n/a | D84: USD | E84: 18.12265838 | F84: 17.39794955 | G84: 11.224 | H84: 0 | I84: 0.0028
A85: 2013-06-28 | B85: IE00B4Q6B737 | C85: n/a | D85: USD | E85: 19.03913645 | F85: 18.3222 | G85: 11.394 | H85: 0 | I85: 0.0028

Sheet IE00B61C7X84
A1: ISIN | B1: Currency | C1: CC | D1: Type
A2: IE00B61C7X84 | B2: GBP | C2: 1770118 | D2: 10 | E2: 1770118 - 10 | F2: TT ASIA-PACIFIC EQUITY FU
E4: Old | F4: New
A5: Date | B5: ISIN | C5: WKN | D5: Currency | E5: Share profits in % (Aktiengewinn) | F5: Share profits in % (Aktiengewinn) Corporation Tax Act * | G5: Redemption Price | H5: Interim Profit | I5: ADDI
A6: 2013-03-01 | B6: IE00B61C7X84 | C6: n/a | D6: GBP | E6: 14.48259764 | F6: 14.4805 | G6: 12.227 | H6: 0 | I6: 0.07567974
A7: 2013-03-04 | B7: IE00B61C7X84 | C7: n/a | D7: GBP | E7: 13.08310978 | F7: 13.0094 | G7: 11.976 | H7: 0 | I7: 0.07567974
A8: 2013-03-05 | B8: IE00B61C7X84 | C8: n/a | D8: GBP | E8: 13.93687991 | F8: 13.8794 | G8: 12.068 | H8: 0 | I8: 0.07567974
A9: 2013-03-06 | B9: IE00B61C7X84 | C9: n/a | D9: GBP | E9: 14.71034246 | F9: 14.6096 | G9: 12.246 | H9: 0 | I9: 0.07567974
A10: 2013-03-07 | B10: IE00B61C7X84 | C10: n/a | D10: GBP | E10: 14.44055574 | F10: 14.3409 | G10: 12.225 | H10: 0 | I10: 0.07567974
A11: 2013-03-08 | B11: IE00B61C7X84 | C11: n/a | D11: GBP | E11: 14.60406649 | F11: 14.5406 | G11: 12.365 | H11: 0 | I11: 0.07567974
A12: 2013-03-11 | B12: IE00B61C7X84 | C12: n/a | D12: GBP | E12: 14.75002651 | F12: 14.7034 | G12: 12.414 | H12: 0 | I12: 0.07567974
A13: 2013-03-12 | B13: IE00B61C7X84 | C13: n/a | D13: GBP | E13: 14.3607006 | F13: 14.3194 | G13: 12.37 | H13: 0 | I13: 0.07567974
A14: 2013-03-13 | B14: IE00B61C7X84 | C14: n/a | D14: GBP | E14: 13.69230448 | F14: 13.6449 | G14: 12.232 | H14: 0 | I14: 0.07567974
A15: 2013-03-14 | B15: IE00B61C7X84 | C15: n/a | D15: GBP | E15: 13.52236796 | F15: 13.4799 | G15: 12.109 | H15: 0 | I15: 0.07567974
A16: 2013-03-15 | B16: IE00B61C7X84 | C16: n/a | D16: GBP | E16: 13.66511045 | F16: 13.6257 | G16: 12.06 | H16: 0 | I16: 0.07567974
A17: 2013-03-19 | B17: IE00B61C7X84 | C17: n/a | D17: GBP | E17: 12.46492881 | F17: 12.4373 | G17: 11.886 | H17: 0 | I17: 0.07567974
A18: 2013-03-20 | B18: IE00B61C7X84 | C18: n/a | D18: GBP | E18: 12.47900417 | F18: 12.4076 | G18: 11.872 | H18: 0 | I18: 0.07567974
A19: 2013-03-21 | B19: IE00B61C7X84 | C19: n/a | D19: GBP | E19: 12.4044767 | F19: 12.335 | G19: 11.819 | H19: 0 | I19: 0.07567974
A20: 2013-03-22 | B20: IE00B61C7X84 | C20: n/a | D20: GBP | E20: 12.31805229 | F20: 12.2535 | G20: 11.759 | H20: 0 | I20: 0.07567974
A21: 2013-03-25 | B21: IE00B61C7X84 | C21: n/a | D21: GBP | E21: 13.06369201 | F21: 13.01 | G21: 11.905 | H21: 0 | I21: 0.07567974
A22: 2013-03-26 | B22: IE00B61C7X84 | C22: n/a | D22: GBP | E22: 13.07753708 | F22: 13.0261 | G22: 11.928 | H22: 0 | I22: 0.07567974
A23: 2013-03-27 | B23: IE00B61C7X84 | C23: n/a | D23: GBP | E23: 13.46929975 | F23: 13.4254 | G23: 12.015 | H23: 0 | I23: 0.07567974
A24: 2013-03-28 | B24: IE00B61C7X84 | C24: n/a | D24: GBP | E24: 12.9660772 | F24: 12.9384 | G24: 11.89 | H24: 0 | I24: 0.07567974
A25: 2013-04-02 | B25: IE00B61C7X84 | C25: n/a | D25: GBP | E25: 13.38517022 | F25: 13.3789 | G25: 12.013 | H25: 0 | I25: 0.07567974
A26: 2013-04-03 | B26: IE00B61C7X84 | C26: n/a | D26: GBP | E26: 13.2020101 | F26: 13.1986 | G26: 11.979 | H26: 0 | I26: 0.07567974
A27: 2013-04-04 | B27: IE00B61C7X84 | C27: n/a | D27: GBP | E27: 12.74025582 | F27: 12.7421 | G27: 11.851 | H27: 0 | I27: 0.07567974
A28: 2013-04-05 | B28: IE00B61C7X84 | C28: n/a | D28: GBP | E28: 11.63107593 | F28: 11.6589 | G28: 11.584 | H28: 0 | I28: 0.07567974
A29: 2013-04-08 | B29: IE00B61C7X84 | C29: n/a | D29: GBP | E29: 11.21892166 | F29: 11.2576 | G29: 11.565 | H29: 0 | I29: 0.07567974
A30: 2013-04-09 | B30: IE00B61C7X84 | C30: n/a | D30: GBP | E30: 12.1345789 | F30: 12.0396 | G30: 11.648 | H30: 0 | I30: 0.07567974
A31: 2013-04-10 | B31: IE00B61C7X84 | C31: n/a | D31: GBP | E31: 12.5154038 | F31: 12.538 | G31: 11.709 | H31: 0 | I31: 0.07567974
A32: 2013-04-11 | B32: IE00B61C7X84 | C32: n/a | D32: GBP | E32: 13.4815705 | F32: 13.5151 | G32: 11.791 | H32: 0 | I32: 0.07567974
A33: 2013-04-12 | B33: IE00B61C7X84 | C33: n/a | D33: GBP | E33: 13.16987306 | F33: 13.207 | G33: 11.741 | H33: 0 | I33: 0.07567974
A34: 2013-04-15 | B34: IE00B61C7X84 | C34: n/a | D34: GBP | E34: 12.24212465 | F34: 12.2894 | G34: 11.674 | H34: 0 | I34: 0.07567974
A35: 2013-04-16 | B35: IE00B61C7X84 | C35: n/a | D35: GBP | E35: 12.18232072 | F35: 12.2321 | G35: 11.7 | H35: 0 | I35: 0.07567974
A36: 2013-04-17 | B36: IE00B61C7X84 | C36: n/a | D36: GBP | E36: 12.34588563 | F36: 12.3988 | G36: 11.755 | H36: 0 | I36: 0.07567974
A37: 2013-04-18 | B37: IE00B61C7X84 | C37: n/a | D37: GBP | E37: 11.7430374 | F37: 11.7995 | G37: 11.652 | H37: 0 | I37: 0.07567974
A38: 2013-04-19 | B38: IE00B61C7X84 | C38: n/a | D38: GBP | E38: 12.54468029 | F38: 12.6039 | G38: 11.788 | H38: 0 | I38: 0.07567974
A39: 2013-04-22 | B39: IE00B61C7X84 | C39: n/a | D39: GBP | E39: 13.1688923 | F39: 13.2378 | G39: 11.889 | H39: 0 | I39: 0.07567974
A40: 2013-04-23 | B40: IE00B61C7X84 | C40: n/a | D40: GBP | E40: 12.97021993 | F40: 13.0428 | G40: 11.827 | H40: 0 | I40: 0.07567974
A41: 2013-04-24 | B41: IE00B61C7X84 | C41: n/a | D41: GBP | E41: 14.13869236 | F41: 14.2136 | G41: 12.009 | H41: 0 | I41: 0.07567974
A42: 2013-04-25 | B42: IE00B61C7X84 | C42: n/a | D42: GBP | E42: 14.46442356 | F42: 14.5117 | G42: 11.939 | H42: 0 | I42: 0.07567974
A43: 2013-04-26 | B43: IE00B61C7X84 | C43: n/a | D43: GBP | E43: 14.31513691 | F43: 14.3662 | G43: 11.872 | H43: 0 | I43: 0.07567974
A44: 2013-04-29 | B44: IE00B61C7X84 | C44: n/a | D44: GBP | E44: 14.85786868 | F44: 14.9001 | G44: 11.944 | H44: 0 | I44: 0.07567974
A45: 2013-04-30 | B45: IE00B61C7X84 | C45: n/a | D45: GBP | E45: 15.83087101 | F45: 15.8654 | G45: 12.03 | H45: 0 | I45: 0.07567974
A46: 2013-05-01 | B46: IE00B61C7X84 | C46: n/a | D46: GBP | E46: 15.57801606 | F46: 15.6162 | G46: 12.004 | H46: 0 | I46: 0.07567974
A47: 2013-05-02 | B47: IE00B61C7X84 | C47: n/a | D47: GBP | E47: 15.44726312 | F47: 15.4889 | G47: 12.03 | H47: 0 | I47: 0.07567974
A48: 2013-05-03 | B48: IE00B61C7X84 | C48: n/a | D48: GBP | E48: 15.42772459 | F48: 15.4724 | G48: 11.982 | H48: 0 | I48: 0.07567974
A49: 2013-05-07 | B49: IE00B61C7X84 | C49: n/a | D49: GBP | E49: 15.66984374 | F49: 15.6812 | G49: 12.102 | H49: 0 | I49: 0.07567974
A50: 2013-05-08 | B50: IE00B61C7X84 | C50: n/a | D50: GBP | E50: 16.42409083 | F50: 16.4381 | G50: 12.147 | H50: 0 | I50: 0.07567974
A51: 2013-05-09 | B51: IE00B61C7X84 | C51: n/a | D51: GBP | E51: 16.33782415 | F51: 16.225 | G51: 12.178 | H51: 0 | I51: 0.07567974
A52: 2013-05-10 | B52: IE00B61C7X84 | C52: n/a | D52: GBP | E52: 15.70419117 | F52: 15.597 | G52: 12.186 | H52: 0 | I52: 0.07567974
A53: 2013-05-13 | B53: IE00B61C7X84 | C53: n/a | D53: GBP | E53: 15.29632473 | F53: 15.1993 | G53: 12.127 | H53: 0 | I53: 0.07567974
A54: 2013-05-14 | B54: IE00B61C7X84 | C54: n/a | D54: GBP | E54: 15.37609984 | F54: 15.2034 | G54: 12.212 | H54: 0 | I54: 0.07567974
A55: 2013-05-15 | B55: IE00B61C7X84 | C55: n/a | D55: GBP | E55: 15.34149688 | F55: 15.1655 | G55: 12.261 | H55: 0 | I55: 0.07567974
A56: 2013-05-16 | B56: IE00B61C7X84 | C56: n/a | D56: GBP | E56: 15.1273467 | F56: 14.9556 | G56: 12.166 | H56: 0 | I56: 0.07567974
A57: 2013-05-17 | B57: IE00B61C7X84 | C57: n/a | D57: GBP | E57: 14.93596154 | F57: 14.77 | G57: 12.228 | H57: 0 | I57: 0.07567974
A58: 2013-05-20 | B58: IE00B61C7X84 | C58: n/a | D58: GBP | E58: 15.87837057 | F58: 15.72328133 | G58: 12.336 | H58: 0 | I58: 0.07567974
A59: 2013-05-21 | B59: IE00B61C7X84 | C59: n/a | D59: GBP | E59: 15.19340077 | F59: 15.04077124 | G59: 12.3 | H59: 0 | I59: 0.07567974
A60: 2013-05-22 | B60: IE00B61C7X84 | C60: n/a | D60: GBP | E60: 14.68101802 | F60: 14.52036809 | G60: 12.292 | H60: 0 | I60: 0.07567974
A61: 2013-05-23 | B61: IE00B61C7X84 | C61: n/a | D61: GBP | E61: 13.18326537 | F61: 13.02274932 | G61: 12.046 | H61: 0 | I61: 0.07567974
A62: 2013-05-24 | B62: IE00B61C7X84 | C62: n/a | D62: GBP | E62: 12.83882169 | F62: 12.64089196 | G62: 11.94 | H62: 0 | I62: 0.07567974
A63: 2013-05-28 | B63: IE00B61C7X84 | C63: n/a | D63: GBP | E63: 13.15333508 | F63: 12.97077881 | G63: 12.083 | H63: 0 | I63: 0.07567974
A64: 2013-05-29 | B64: IE00B61C7X84 | C64: n/a | D64: GBP | E64: 12.69499889 | F64: 12.51525681 | G64: 11.956 | H64: 0 | I64: 0.07567974
A65: 2013-05-30 | B65: IE00B61C7X84 | C65: n/a | D65: GBP | E65: 12.50279324 | F65: 12.12579021 | G65: 11.853 | H65: 0 | I65: 0.07567974
A66: 2013-05-31 | B66: IE00B61C7X84 | C66: n/a | D66: GBP | E66: 12.00989674 | F66: 11.75764 | G66: 11.801 | H66: 0 | I66: 0.07567974
A67: 2013-06-04 | B67: IE00B61C7X84 | C67: n/a | D67: GBP | E67: 11.70040649 | F67: 11.30073504 | G67: 11.644 | H67: 0 | I67: 0.07567974
A68: 2013-06-05 | B68: IE00B61C7X84 | C68: n/a | D68: GBP | E68: 10.71479034 | F68: 10.29810337 | G68: 11.441 | H68: 0 | I68: 0.07567974
A69: 2013-06-06 | B69: IE00B61C7X84 | C69: n/a | D69: GBP | E69: 9.89137471 | F69: 9.4740374 | G69: 11.234 | H69: 0 | I69: 0.07567974
A70: 2013-06-07 | B70: IE00B61C7X84 | C70: n/a | D70: GBP | E70: 8.86514469 | F70: 8.42062666 | G70: 11.089 | H70: 0 | I70: 0.07567974
A71: 2013-06-10 | B71: IE00B61C7X84 | C71: n/a | D71: GBP | E71: 8.78225453 | F71: 8.28752396 | G71: 11.082 | H71: 0 | I71: 0.07567974
A72: 2013-06-11 | B72: IE00B61C7X84 | C72: n/a | D72: GBP | E72: 7.87018267 | F72: 7.37446948 | G72: 10.909 | H72: 0 | I72: 0.07567974
A73: 2013-06-12 | B73: IE00B61C7X84 | C73: n/a | D73: GBP | E73: 7.89160307 | F73: 7.39713388 | G73: 10.85 | H73: 0 | I73: 0.07567974
A74: 2013-06-13 | B74: IE00B61C7X84 | C74: n/a | D74: GBP | E74: 6.66603124 | F74: 5.94810821 | G74: 10.701 | H74: 0 | I74: 0.07567974
A75: 2013-06-14 | B75: IE00B61C7X84 | C75: n/a | D75: GBP | E75: 8.02898416 | F75: 7.32541702 | G75: 10.884 | H75: 0 | I75: 0.07567974
A76: 2013-06-17 | B76: IE00B61C7X84 | C76: n/a | D76: GBP | E76: 8.35776288 | F76: 7.60976255 | G76: 10.902 | H76: 0 | I76: 0.07567974
A77: 2013-06-18 | B77: IE00B61C7X84 | C77: n/a | D77: GBP | E77: 8.11092769 | F77: 7.36602041 | G77: 10.934 | H77: 0 | I77: 0.07567974
A78: 2013-06-19 | B78: IE00B61C7X84 | C78: n/a | D78: GBP | E78: 8.20093548 | F78: 7.45865494 | G78: 10.913 | H78: 0 | I78: 0.07567974
A79: 2013-06-20 | B79: IE00B61C7X84 | C79: n/a | D79: GBP | E79: 4.70545913 | F79: 3.94474696 | G79: 10.614 | H79: 0 | I79: 0.07567974
A80: 2013-06-21 | B80: IE00B61C7X84 | C80: n/a | D80: GBP | E80: 4.32255563 | F80: 3.56240818 | G80: 10.63 | H80: 0 | I80: 0.07567974
A81: 2013-06-24 | B81: IE00B61C7X84 | C81: n/a | D81: GBP | E81: 2.70396753 | F81: 1.93955325 | G81: 10.441 | H81: 0 | I81: 0.07567974
A82: 2013-06-25 | B82: IE00B61C7X84 | C82: n/a | D82: GBP | E82: 2.22898923 | F82: 1.47861419 | G82: 10.387 | H82: 0 | I82: 0.07567974
A83: 2013-06-26 | B83: IE00B61C7X84 | C83: n/a | D83: GBP | E83: 3.82559893 | F83: 3.08854328 | G83: 10.596 | H83: 0 | I83: 0.07567974
A84: 2013-06-27 | B84: IE00B61C7X84 | C84: n/a | D84: GBP | E84: 5.57608009 | F84: 4.85151094 | G84: 10.902 | H84: 0 | I84: 0.07567974
A85: 2013-06-28 | B85: IE00B61C7X84 | C85: n/a | D85: GBP | E85: 6.67914019 | F85: 5.9623 | G85: 11.094 | H85: 0 | I85: 0.07567974

Sheet IE00B4LFH886
A1: ISIN | B1: Currency | C1: CC | D1: Type
A2: IE00B4LFH886 | B2: USD | C2: 1788120 | D2: 1 | E2: 1788120 - 1 | F2: TT EMERGING MARKETS EQUITY
E4: Old | F4: New
A5: Date | B5: ISIN | C5: WKN | D5: Currency | E5: Share profits in % (Aktiengewinn) | F5: Share profits in % (Aktiengewinn) Corporation Tax Act * | G5: Redemption Price | H5: Interim Profit | I5: ADDI
A6: 2013-03-01 | B6: IE00B4LFH886 | C6: n/a | D6: USD | E6: -2.07070427 | F6: -2.0613 | G6: 9.604 | H6: 0 | I6: 0.04385151
A7: 2013-03-04 | B7: IE00B4LFH886 | C7: n/a | D7: USD | E7: -2.99979243 | F7: -2.9783 | G7: 9.521 | H7: 0 | I7: 0.04385151
A8: 2013-03-05 | B8: IE00B4LFH886 | C8: n/a | D8: USD | E8: -2.00287629 | F8: -1.9741 | G8: 9.621 | H8: 0 | I8: 0.04385151
A9: 2013-03-06 | B9: IE00B4LFH886 | C9: n/a | D9: USD | E9: -0.93850784 | F9: -0.917 | G9: 9.73 | H9: 0 | I9: 0.04385151
A10: 2013-03-07 | B10: IE00B4LFH886 | C10: n/a | D10: USD | E10: -1.27815066 | F10: -1.2521 | G10: 9.701 | H10: 0 | I10: 0.04385151
A11: 2013-03-08 | B11: IE00B4LFH886 | C11: n/a | D11: USD | E11: -0.71365735 | F11: -0.6818 | G11: 9.761 | H11: 0 | I11: 0.04385151
A12: 2013-03-11 | B12: IE00B4LFH886 | C12: n/a | D12: USD | E12: -1.00494863 | F12: -0.9632 | G12: 9.736 | H12: 0 | I12: 0.04385151
A13: 2013-03-12 | B13: IE00B4LFH886 | C13: n/a | D13: USD | E13: -1.52881636 | F13: -1.481 | G13: 9.693 | H13: 0 | I13: 0.04385151
A14: 2013-03-13 | B14: IE00B4LFH886 | C14: n/a | D14: USD | E14: -2.1605016 | F14: -2.1106 | G14: 9.629 | H14: 0 | I14: 0.04385151
A15: 2013-03-14 | B15: IE00B4LFH886 | C15: n/a | D15: USD | E15: -1.87932956 | F15: -1.8227 | G15: 9.653 | H15: 0 | I15: 0.04385151
A16: 2013-03-15 | B16: IE00B4LFH886 | C16: n/a | D16: USD | E16: -1.43803379 | F16: -1.3756 | G16: 9.685 | H16: 0 | I16: 0.04385151
A17: 2013-03-19 | B17: IE00B4LFH886 | C17: n/a | D17: USD | E17: -2.87182865 | F17: -2.7928 | G17: 9.545 | H17: 0 | I17: 0.04385151
A18: 2013-03-20 | B18: IE00B4LFH886 | C18: n/a | D18: USD | E18: -2.59100354 | F18: -2.5102 | G18: 9.56 | H18: 0 | I18: 0.04385151
A19: 2013-03-21 | B19: IE00B4LFH886 | C19: n/a | D19: USD | E19: -3.04454796 | F19: -2.9681 | G19: 9.517 | H19: 0 | I19: 0.04385151
A20: 2013-03-22 | B20: IE00B4LFH886 | C20: n/a | D20: USD | E20: -3.22599013 | F20: -3.1576 | G20: 9.5 | H20: 0 | I20: 0.04385151
A21: 2013-03-25 | B21: IE00B4LFH886 | C21: n/a | D21: USD | E21: -3.15163582 | F21: -3.0705 | G21: 9.51 | H21: 0 | I21: 0.04385151
A22: 2013-03-26 | B22: IE00B4LFH886 | C22: n/a | D22: USD | E22: -2.45053462 | F22: -2.3645 | G22: 9.583 | H22: 0 | I22: 0.04385151
A23: 2013-03-27 | B23: IE00B4LFH886 | C23: n/a | D23: USD | E23: -1.97673706 | F23: -1.7918 | G23: 9.637 | H23: 0 | I23: 0.04385151
A24: 2013-03-28 | B24: IE00B4LFH886 | C24: n/a | D24: USD | E24: -1.62163353 | F24: -1.4336 | G24: 9.667 | H24: 0 | I24: 0.04385151
A25: 2013-04-02 | B25: IE00B4LFH886 | C25: n/a | D25: USD | E25: -1.67373232 | F25: -1.4615 | G25: 9.675 | H25: 0 | I25: 0.04385151
A26: 2013-04-03 | B26: IE00B4LFH886 | C26: n/a | D26: USD | E26: -2.25356529 | F26: -2.0397 | G26: 9.639 | H26: 0 | I26: 0.04385151
A27: 2013-04-04 | B27: IE00B4LFH886 | C27: n/a | D27: USD | E27: -3.00293109 | F27: -2.7807 | G27: 9.543 | H27: 0 | I27: 0.04385151
A28: 2013-04-05 | B28: IE00B4LFH886 | C28: n/a | D28: USD | E28: -3.75338787 | F28: -3.5235 | G28: 9.483 | H28: 0 | I28: 0.04385151
A29: 2013-04-08 | B29: IE00B4LFH886 | C29: n/a | D29: USD | E29: -3.54543371 | F29: -3.3029 | G29: 9.494 | H29: 0 | I29: 0.04385151
A30: 2013-04-09 | B30: IE00B4LFH886 | C30: n/a | D30: USD | E30: -2.734512 | F30: -2.5166 | G30: 9.575 | H30: 0 | I30: 0.04385151
A31: 2013-04-10 | B31: IE00B4LFH886 | C31: n/a | D31: USD | E31: -1.87507731 | F31: -1.6876 | G31: 9.658 | H31: 0 | I31: 0.04385151
A32: 2013-04-11 | B32: IE00B4LFH886 | C32: n/a | D32: USD | E32: -1.51818696 | F32: -1.3263 | G32: 9.697 | H32: 0 | I32: 0.04385151
A33: 2013-04-12 | B33: IE00B4LFH886 | C33: n/a | D33: USD | E33: -1.92834606 | F33: -1.7652 | G33: 9.654 | H33: 0 | I33: 0.04385151
A34: 2013-04-15 | B34: IE00B4LFH886 | C34: n/a | D34: USD | E34: -3.43621266 | F34: -3.2612 | G34: 9.493 | H34: 0 | I34: 0.04385151
A35: 2013-04-16 | B35: IE00B4LFH886 | C35: n/a | D35: USD | E35: -3.41075301 | F35: -3.2296 | G35: 9.514 | H35: 0 | I35: 0.04385151
A36: 2013-04-17 | B36: IE00B4LFH886 | C36: n/a | D36: USD | E36: -3.77186695 | F36: -3.6991 | G36: 9.472 | H36: 0 | I36: 0.04385151
A37: 2013-04-18 | B37: IE00B4LFH886 | C37: n/a | D37: USD | E37: -3.96342042 | F37: -3.9074 | G37: 9.468 | H37: 0 | I37: 0.04385151
A38: 2013-04-19 | B38: IE00B4LFH886 | C38: n/a | D38: USD | E38: -2.86302015 | F38: -2.8048 | G38: 9.568 | H38: 0 | I38: 0.04385151
A39: 2013-04-22 | B39: IE00B4LFH886 | C39: n/a | D39: USD | E39: -2.3798851 | F39: -2.3131 | G39: 9.618 | H39: 0 | I39: 0.04385151
A40: 2013-04-23 | B40: IE00B4LFH886 | C40: n/a | D40: USD | E40: -2.53909608 | F40: -2.4693 | G40: 9.61 | H40: 0 | I40: 0.04385151
A41: 2013-04-24 | B41: IE00B4LFH886 | C41: n/a | D41: USD | E41: -1.57391671 | F41: -1.5037 | G41: 9.706 | H41: 0 | I41: 0.04385151
A42: 2013-04-25 | B42: IE00B4LFH886 | C42: n/a | D42: USD | E42: -0.73982615 | F42: -0.7001 | G42: 9.799 | H42: 0 | I42: 0.04385151
A43: 2013-04-26 | B43: IE00B4LFH886 | C43: n/a | D43: USD | E43: -0.95385312 | F43: -0.9075 | G43: 9.776 | H43: 0 | I43: 0.04385151
A44: 2013-04-29 | B44: IE00B4LFH886 | C44: n/a | D44: USD | E44: -0.47003769 | F44: -0.4445 | G44: 9.82 | H44: 0 | I44: 0.04385151
A45: 2013-04-30 | B45: IE00B4LFH886 | C45: n/a | D45: USD | E45: 0.29624801 | F45: 0.2673 | G45: 9.897 | H45: 0 | I45: 0.04385151
A46: 2013-05-01 | B46: IE00B4LFH886 | C46: n/a | D46: USD | E46: 0.24999352 | F46: 0.2252 | G46: 9.891 | H46: 0 | I46: 0.04385151
A47: 2013-05-02 | B47: IE00B4LFH886 | C47: n/a | D47: USD | E47: -0.48909028 | F47: -0.5095 | G47: 9.814 | H47: 0 | I47: 0.04385151
A48: 2013-05-03 | B48: IE00B4LFH886 | C48: n/a | D48: USD | E48: -0.43756052 | F48: -0.4538 | G48: 9.809 | H48: 0 | I48: 0.04385151
A49: 2013-05-07 | B49: IE00B4LFH886 | C49: n/a | D49: USD | E49: 0.69581225 | F49: 0.6992 | G49: 9.941 | H49: 0 | I49: 0.04385151
A50: 2013-05-08 | B50: IE00B4LFH886 | C50: n/a | D50: USD | E50: 1.29665974 | F50: 1.3037 | G50: 10.01 | H50: 0 | I50: 0.04385151
A51: 2013-05-09 | B51: IE00B4LFH886 | C51: n/a | D51: USD | E51: 1.36998862 | F51: 1.3547 | G51: 10.01 | H51: 0 | I51: 0.04385151
A52: 2013-05-10 | B52: IE00B4LFH886 | C52: n/a | D52: USD | E52: 0.87999112 | F52: 0.8693 | G52: 9.963 | H52: 0 | I52: 0.04385151
A53: 2013-05-13 | B53: IE00B4LFH886 | C53: n/a | D53: USD | E53: 0.1837976 | F53: 0.1854 | G53: 9.886 | H53: 0 | I53: 0.04385151
A54: 2013-05-14 | B54: IE00B4LFH886 | C54: n/a | D54: USD | E54: 0.75622356 | F54: 0.7615 | G54: 9.95 | H54: 0 | I54: 0.04385151
A55: 2013-05-15 | B55: IE00B4LFH886 | C55: n/a | D55: USD | E55: 0.96789087 | F55: 0.9701 | G55: 9.989 | H55: 0 | I55: 0.04385151
A56: 2013-05-16 | B56: IE00B4LFH886 | C56: n/a | D56: USD | E56: 0.94143824 | F56: 0.9479 | G56: 9.988 | H56: 0 | I56: 0.04385151
A57: 2013-05-17 | B57: IE00B4LFH886 | C57: n/a | D57: USD | E57: 1.00169094 | F57: 0.9607 | G57: 9.989 | H57: 0 | I57: 0.04385151
A58: 2013-05-20 | B58: IE00B4LFH886 | C58: n/a | D58: USD | E58: 1.32500657 | F58: 1.28767673 | G58: 10.01 | H58: 0 | I58: 0.04385151
A59: 2013-05-21 | B59: IE00B4LFH886 | C59: n/a | D59: USD | E59: 1.27382024 | F59: 1.24077355 | G59: 10 | H59: 0 | I59: 0.04385151
A60: 2013-05-22 | B60: IE00B4LFH886 | C60: n/a | D60: USD | E60: 1.04028596 | F60: 1.01136444 | G60: 9.98 | H60: 0 | I60: 0.04385151
A61: 2013-05-23 | B61: IE00B4LFH886 | C61: n/a | D61: USD | E61: -0.61959561 | F61: -0.68163377 | G61: 9.807 | H61: 0 | I61: 0.04385151
A62: 2013-05-24 | B62: IE00B4LFH886 | C62: n/a | D62: USD | E62: -0.33181007 | F62: -0.38972309 | G62: 9.833 | H62: 0 | I62: 0.04385151
A63: 2013-05-28 | B63: IE00B4LFH886 | C63: n/a | D63: USD | E63: 0.29862518 | F63: 0.22590574 | G63: 9.893 | H63: 0 | I63: 0.04385151
A64: 2013-05-29 | B64: IE00B4LFH886 | C64: n/a | D64: USD | E64: -0.8045625 | F64: -0.89529975 | G64: 9.783 | H64: 0 | I64: 0.04385151
A65: 2013-05-30 | B65: IE00B4LFH886 | C65: n/a | D65: USD | E65: -1.08442226 | F65: -1.18446188 | G65: 9.751 | H65: 0 | I65: 0.04385151
A66: 2013-05-31 | B66: IE00B4LFH886 | C66: n/a | D66: USD | E66: -1.73265836 | F66: -1.9014513 | G66: 9.678 | H66: 0 | I66: 0.04385151
A67: 2013-06-04 | B67: IE00B4LFH886 | C67: n/a | D67: USD | E67: -2.21376353 | F67: -2.41554467 | G67: 9.64 | H67: 0 | I67: 0.04385151
A68: 2013-06-05 | B68: IE00B4LFH886 | C68: n/a | D68: USD | E68: -3.18249356 | F68: -3.38686745 | G68: 9.542 | H68: 0 | I68: 0.04385151
A69: 2013-06-06 | B69: IE00B4LFH886 | C69: n/a | D69: USD | E69: -3.75595283 | F69: -3.95774476 | G69: 9.486 | H69: 0 | I69: 0.04385151
A70: 2013-06-07 | B70: IE00B4LFH886 | C70: n/a | D70: USD | E70: -4.30073417 | F70: -4.62537206 | G70: 9.439 | H70: 0 | I70: 0.04385151
A71: 2013-06-10 | B71: IE00B4LFH886 | C71: n/a | D71: USD | E71: -4.76957098 | F71: -5.14394927 | G71: 9.385 | H71: 0 | I71: 0.04385151
A72: 2013-06-11 | B72: IE00B4LFH886 | C72: n/a | D72: USD | E72: -6.60741545 | F72: -6.9850067 | G72: 9.21 | H72: 0 | I72: 0.04385151
A73: 2013-06-12 | B73: IE00B4LFH886 | C73: n/a | D73: USD | E73: -6.95833965 | F73: -7.33340853 | G73: 9.182 | H73: 0 | I73: 0.04385151
A74: 2013-06-13 | B74: IE00B4LFH886 | C74: n/a | D74: USD | E74: -7.92571723 | F74: -8.51307902 | G74: 9.082 | H74: 0 | I74: 0.04385151
A75: 2013-06-14 | B75: IE00B4LFH886 | C75: n/a | D75: USD | E75: -6.830147 | F75: -7.40738375 | G75: 9.18 | H75: 0 | I75: 0.04385151
A76: 2013-06-17 | B76: IE00B4LFH886 | C76: n/a | D76: USD | E76: -6.42899435 | F76: -6.99135093 | G76: 9.219 | H76: 0 | I76: 0.04385151
A77: 2013-06-18 | B77: IE00B4LFH886 | C77: n/a | D77: USD | E77: -6.45764744 | F77: -7.01400457 | G77: 9.215 | H77: 0 | I77: 0.04385151
A78: 2013-06-19 | B78: IE00B4LFH886 | C78: n/a | D78: USD | E78: -7.31777018 | F78: -7.874967 | G78: 9.144 | H78: 0 | I78: 0.04385151
A79: 2013-06-20 | B79: IE00B4LFH886 | C79: n/a | D79: USD | E79: -11.68856365 | F79: -12.26286867 | G79: 8.769 | H79: 0 | I79: 0.04385151
A80: 2013-06-21 | B80: IE00B4LFH886 | C80: n/a | D80: USD | E80: -12.33712656 | F80: -12.91081533 | G80: 8.712 | H80: 0 | I80: 0.04385151
A81: 2013-06-24 | B81: IE00B4LFH886 | C81: n/a | D81: USD | E81: -14.80470298 | F81: -15.3787533 | G81: 8.517 | H81: 0 | I81: 0.04385151
A82: 2013-06-25 | B82: IE00B4LFH886 | C82: n/a | D82: USD | E82: -13.90446461 | F82: -14.45661976 | G82: 8.588 | H82: 0 | I82: 0.04385151
A83: 2013-06-26 | B83: IE00B4LFH886 | C83: n/a | D83: USD | E83: -12.15467526 | F83: -12.6946411 | G83: 8.719 | H83: 0 | I83: 0.04385151
A84: 2013-06-27 | B84: IE00B4LFH886 | C84: n/a | D84: USD | E84: -10.20213698 | F84: -10.73487252 | G84: 8.874 | H84: 0 | I84: 0.04385151
A85: 2013-06-28 | B85: IE00B4LFH886 | C85: n/a | D85: USD | E85: -9.15890987 | F85: -9.6836 | G85: 8.969 | H85: 0 | I85: 0.04385151
